Workbook

Sheet Portafolio
A1: CENTRO DE MANDO — GESTIÓN DE CAPITAL
A2: Capital Inicial (depósito) | B2: 2000 | D2: Capital Actual (real) | E2: =SUM(E7:E14) -> 2000 | G2: Retorno Total | H2: =(E2-B2)/B2 -> 0
D3: P&L ($) | E3: =E2-B2 -> 0 | G3: % Invertido | H3: =IF(E2=0,0,SUM(F7:F14)/E2) -> 0
A5: ASIGNACIÓN DE CAPITAL POR ESTRATEGIA | J5: 📋 CÓMO AGREGAR UNA NUEVA ESTRATEGIA
A6: Estrategia | B6: % Target | C6: Capital Target | D6: Capital Disponible | E6: Capital Real | F6: Capital Invertido | G6: % Real | H6: Desviación | J6: ① Escribe el nombre en la columna A (filas 11-14)
A7: HOLD | B7: 0.4 | C7: =B7*$B$2 -> 800 | D7: =HOLD!C4 -> 800 | E7: =HOLD!C3 -> 800 | F7: =HOLD!C5 -> 0 | G7: =IF($E$2=0,0,E7/$E$2) -> 0.4 | H7: =G7-B7 -> 0 | J7: ② Asigna el % Target en la columna B
A8: Largo Plazo | B8: 0.3 | C8: 600 | D8: ='Largo Plazo'!C3 -> 600 | E8: ='Largo Plazo'!C3 -> 600 | F8: ='Largo Plazo'!C4 -> 0 | G8: 0.3 | H8: 0 | J8: ③ Clic derecho en pestaña → Mostrar → PLANTILLA
A9: Spot X | B9: 0.2 | C9: 400 | D9: ='Spot X'!C3 -> 400 | E9: ='Spot X'!C3 -> 400 | F9: ='Spot X'!C4 -> 0 | G9: 0.2 | H9: 0 | J9: ④ Duplica PLANTILLA y renómbrala
A10: Futuros | B10: 0.1 | C10: 200 | D10: =Futuros!C3 -> 200 | E10: =Futuros!C3 -> 200 | F10: =Futuros!C4 -> 0 | G10: 0.1 | H10: 0 | J10: ⑤ En la nueva hoja, vincula C1:
B11: 0 | C11: 0 | G11: 0 | H11: 0 | J11: =Portafolio!C[FILA] (ej: =Portafolio!C11)
C12: 0 | G12: 0 | H12: 0 | J12: ⑥ Aquí en Portafolio, vincula estas 3 celdas:
C13: 0 | G13: 0 | H13: 0 | J13: D[FILA] = ='NuevaHoja'!C2 (Ganancias)
C14: 0 | G14: 0 | H14: 0 | J14: E[FILA] = ='NuevaHoja'!C3 (Capital Real)
A15: TOTAL | B15: =SUM(B7:B14) -> 1 | C15: 2000 | D15: 2000 | E15: 2000 | F15: 0 | G15: 1 | H15: =IF(B15>1,"⚠️ >"&TEXT(B15,"0%")&" — Excede!",IF(B15<1,"⚠️ "&TEXT(B15,"0%")&" — Falta "&TEXT(1-B15,"0%"),"✅ 100%")) -> ✅ 100% | J15: F[FILA] = ='NuevaHoja'!C4 (Cap. Invertido)
A17: CARACTERÍSTICAS POR ESTRATEGIA
A18: Variable | B18: HOLD | C18: Largo Plazo | D18: Spot X | E18: Futuros
A19: Temporalidad | B19: 1 mes | C19: 1 semana | D19: 1 día | E19: 4h – 1h
A20: Tipo de análisis | B20: Por activo | C20: Fundamental + técnico | D20: Técnico | E20: Técnico
A21: Regla de salida | B21: Nunca se vende | C21: Patrón de venta (3–6 meses) | D21: 10 días por patrón | E21: 1–3 días
A22: Almacenamiento | B22: Cold wallet | C22: Cold wallet | D22: Exchange | E22: Exchange
A24: REGLAS DE RIESGO POR TRADE
A25: Regla | C25: Input | E25: Spot X | G25: Futuros
A26: % Máx. riesgo por trade (del capital total) | C26: 0.015
A27: Riesgo máx. por trade ($) | C27: =E2*C26 -> 30 | E27: =C27 -> 30 | G27: =C27 -> 30
A28: Capital disponible para operar | E28: =D9 -> 400 | G28: =D10 -> 200
A29: Máx. trades abiertos simultáneos | C29: 3
A30: Riesgo total máx. simultáneo ($) | C30: =C27*C29 -> 90 | E30: =C30 -> 90 | G30: =C30 -> 90
A31: Máx. pérdidas consecutivas antes de STOP | C31: 5
A32: Límite pérdida semanal ($) | C32: =C27*C31 -> 150
A33: como % del capital total | C33: =C32/E2 -> 0.075
A35: POSITION SIZING MÁXIMO POR TRADE
A36: Apalancamiento disponible | E36: 1 | G36: 10
A37: Distancia SL asumida (%) | E37: 0.03 | G37: 0.015
A38: ⭐ Position Size Máx. (nocional $) | E38: =C27/E37 -> 1000 | G38: =C27/G37 -> 2000
A39: Margen requerido | E39: =E38/E36 -> 1000 | G39: =G38/G36 -> 200
A40: ¿Cabe en capital disponible? | E40: =IF(E39<=E28,"✅ OK","❌ NO") -> ❌ NO | G40: =IF(G39<=G28,"✅ OK","❌ NO") -> ✅ OK
A41: Detalle | E41: =IF(E39<=E28,"Margen $"&FIXED(E39,0)&" ≤ Disp. $"&FIXED(E28,0),"Necesitas $"&FIXED(E39,0)&" | Tienes $"&FIXED(E28,0)) -> Necesitas $1.000 | Tienes $400 | G41: =IF(G39<=G28,"Margen $"&FIXED(G39,0)&" ≤ Disp. $"&FIXED(G28,0),"Necesitas $"&FIXED(G39,0)&" | Tienes $"&FIXED(G28,0)) -> Margen $200 ≤ Disp. $200
A42: ALERTAS DE REBALANCEO
A43: Umbral de rebalanceo | C43: 0.05
B44: % Real | C44: % Target | D44: Desviación | E44: Acción Sugerida | F44: Monto a Mover ($)
A45: HOLD | B45: =G7 -> 0.4 | C45: =B7 -> 0.4 | D45: =H7 -> 0 | E45: =IF(ABS(H7)>$C$43,IF(H7>0,"⚠️ Reducir","⚠️ Aumentar"),"✅ OK") -> ✅ OK | F45: =IF(ABS(H7)>$C$43,ABS(H7)*E2,0) -> 0
A46: Largo Plazo | B46: 0.3 | C46: 0.3 | D46: 0 | E46: =IF(ABS(H8)>$C$43,IF(H8>0,"⚠️ Reducir","⚠️ Aumentar"),"✅ OK") -> ✅ OK | F46: =IF(ABS(H8)>$C$43,ABS(H8)*E2,0) -> 0
A47: Spot X | B47: 0.2 | C47: 0.2 | D47: 0 | E47: =IF(ABS(H9)>$C$43,IF(H9>0,"⚠️ Reducir","⚠️ Aumentar"),"✅ OK") -> ✅ OK | F47: =IF(ABS(H9)>$C$43,ABS(H9)*E2,0) -> 0
A48: Futuros | B48: 0.1 | C48: 0.1 | D48: 0 | E48: =IF(ABS(H10)>$C$43,IF(H10>0,"⚠️ Reducir","⚠️ Aumentar"),"✅ OK") -> ✅ OK | F48: =IF(ABS(H10)>$C$43,ABS(H10)*E2,0) -> 0
A49: =IF(A11="","",A11) ->  | B49: 0 | C49: 0 | D49: 0 | E49: =IF(A11="","",IF(ABS(H11)>$C$43,IF(H11>0,"⚠️ Reducir","⚠️ Aumentar"),"✅ OK")) ->  | F49: =IF(A11="",0,IF(ABS(H11)>$C$43,ABS(H11)*E2,0)) -> 0
A50: =IF(A12="","",A12) ->  | B50: 0 | C50: 0 | D50: 0 | E50: =IF(A12="","",IF(ABS(H12)>$C$43,IF(H12>0,"⚠️ Reducir","⚠️ Aumentar"),"✅ OK")) ->  | F50: =IF(A12="",0,IF(ABS(H12)>$C$43,ABS(H12)*E2,0)) -> 0
A51: =IF(A13="","",A13) ->  | B51: 0 | C51: 0 | D51: 0 | E51: =IF(A13="","",IF(ABS(H13)>$C$43,IF(H13>0,"⚠️ Reducir","⚠️ Aumentar"),"✅ OK")) ->  | F51: =IF(A13="",0,IF(ABS(H13)>$C$43,ABS(H13)*E2,0)) -> 0
A52: =IF(A14="","",A14) ->  | B52: 0 | C52: 0 | D52: 0 | E52: =IF(A14="","",IF(ABS(H14)>$C$43,IF(H14>0,"⚠️ Reducir","⚠️ Aumentar"),"✅ OK")) ->  | F52: =IF(A14="",0,IF(ABS(H14)>$C$43,ABS(H14)*E2,0)) -> 0

Sheet Plan de Trading
A1: FECHA | B1: DIA | C1: DISPONIBLE | D1: CAPITAL FUTUROS | E1: CAPITAL SPOT | F1: ESTADO SPOT | G1: RESULTADO FUT. | H1: RESULTADO SPOT | I1: RIESGO $ FUT. | J1: RIESGO $ SPOT | K1: GAN. FUTUROS | L1: GAN. SPOT | M1: GAN. TOTAL | N1: GAN. TOTAL % | O1: EQUITY PEAK | P1: DRAWDOWN % | Q1: RACHA FUT. | S1: PANEL DE CONTROL | V1: 1209
A2: 2026-02-01 | B2: 1 | C2: =T5 -> 600 | D2: =C2*($T$3/$T$5) -> 200 | E2: =C2*($T$4/$T$5) -> 400 | F2: =IF(MOD(B2-1,$T$10)=0,"APERTURA","—") -> APERTURA | G2: =IF(RAND()+0*$V$1<=$T$6,"WIN","LOSS") -> LOSS | H2: =IF(F2="CIERRE",IF(RAND()+0*$V$1<=$T$6,"WIN","LOSS"),"—") -> — | I2: =D2*$T$8 -> 3 | J2: =IF(F2="APERTURA",E2*$T$9,0) -> 6 | K2: =IF(G2="WIN",I2*$T$7,-I2) -> -3 | L2: =IF(F2="CIERRE",IF(H2="WIN",J2*$T$7,-J2),0) -> 0 | M2: =K2+L2 -> -3 | N2: =(C2/C$2-1) -> 0 | O2: =MAX(C$2:C2) -> 600 | P2: =C2/O2-1 -> 0 | Q2: =IF(G2="LOSS",-1,1) -> -1 | S2: Parámetro | T2: Valor | U2: Nota
A3: 2026-02-02 | B3: 2 | C3: =C2+M2 -> 597 | D3: 199 | E3: 398 | F3: =IF(MOD(B3-1,$T$10)=0,"APERTURA",IF(MOD(B3,$T$10)=0,"CIERRE",IF(OR(F2="APERTURA",F2="ABIERTO"),"ABIERTO","—"))) -> ABIERTO | G3: LOSS | H3: — | I3: =D3*$T$8 -> 2.985 | J3: =IF(F3="APERTURA",E3*$T$9,IF(OR(F3="ABIERTO",F3="CIERRE"),J2,0)) -> 6 | K3: =IF(G3="WIN",I3*$T$7,-I3) -> -2.985 | L3: =IF(F3="CIERRE",IF(H3="WIN",J3*$T$7,-J3),0) -> 0 | M3: =K3+L3 -> -2.985 | N3: =(C3/C$2-1) -> -0.005 | O3: =MAX(C$2:C3) -> 600 | P3: =C3/O3-1 -> -0.005 | Q3: =IF(G3=G2,IF(G3="WIN",Q2+1,Q2-1),IF(G3="WIN",1,-1)) -> -2 | S3: Capital Inicial Futuros | T3: =Portafolio!C10 -> 200 | U3: ← Portafolio: Capital Futuros
A4: 2026-02-03 | B4: 3 | C4: =C3+M3 -> 594.015 | D4: 198.005 | E4: 396.01 | F4: ABIERTO | G4: LOSS | H4: — | I4: =D4*$T$8 -> 2.970075 | J4: 6 | K4: =IF(G4="WIN",I4*$T$7,-I4) -> -2.970075 | L4: =IF(F4="CIERRE",IF(H4="WIN",J4*$T$7,-J4),0) -> 0 | M4: =K4+L4 -> -2.970075 | N4: =(C4/C$2-1) -> -0.009975 | O4: =MAX(C$2:C4) -> 600 | P4: =C4/O4-1 -> -0.009975 | Q4: =IF(G4=G3,IF(G4="WIN",Q3+1,Q3-1),IF(G4="WIN",1,-1)) -> -3 | S4: Capital Inicial Spot | T4: =Portafolio!C9 -> 400 | U4: ← Portafolio: Capital Spot X
A5: 2026-02-04 | B5: 4 | C5: 591.044925 | D5: 197.014975 | E5: 394.02995 | F5: ABIERTO | G5: LOSS | H5: — | I5: 2.955224625 | J5: 6 | K5: -2.955224625 | L5: 0 | M5: -2.955224625 | N5: -0.014925125 | O5: =MAX(C$2:C5) -> 600 | P5: -0.014925125 | Q5: =IF(G5=G4,IF(G5="WIN",Q4+1,Q4-1),IF(G5="WIN",1,-1)) -> -4 | S5: Capital Inicial Total | T5: =T3+T4 -> 600 | U5: = Futuros + Spot
A6: 2026-02-05 | B6: 5 | C6: 588.0897004 | D6: 196.0299001 | E6: 392.0598002 | F6: ABIERTO | G6: WIN | H6: — | I6: 2.940448502 | J6: 6 | K6: 7.351121255 | L6: 0 | M6: 7.351121255 | N6: -0.01985049937 | O6: =MAX(C$2:C6) -> 600 | P6: -0.01985049937 | Q6: 1 | S6: Win Rate | T6: 0.4 | U6: Probabilidad de WIN
A7: 2026-02-06 | B7: 6 | C7: 595.4408216 | D7: 198.4802739 | E7: 396.9605478 | F7: CIERRE | G7: LOSS | H7: WIN | I7: 2.977204108 | J7: 6 | K7: -2.977204108 | L7: 15 | M7: 12.02279589 | N7: -0.007598630617 | O7: =MAX(C$2:C7) -> 600 | P7: -0.007598630617 | Q7: -1 | S7: R:R (multiplicador) | T7: 2.5 | U7: R:R ratio — ganancia por $1 arriesgado
A8: 2026-02-07 | B8: 7 | C8: 607.4636175 | D8: 202.4878725 | E8: 404.975745 | F8: APERTURA | G8: LOSS | H8: — | I8: 3.037318088 | J8: 6.074636175 | K8: -3.037318088 | L8: 0 | M8: -3.037318088 | N8: 0.01243936254 | O8: =MAX(C$2:C8) -> 607.4636175 | P8: 0 | Q8: -2 | S8: % Riesgo Futuros | T8: 0.015 | U8: INPUT — simula y ajusta
A9: 2026-02-08 | B9: 8 | C9: 604.4262994 | D9: 201.4754331 | E9: 402.9508663 | F9: ABIERTO | G9: WIN | H9: — | I9: 3.022131497 | J9: 6.074636175 | K9: 7.555328743 | L9: 0 | M9: 7.555328743 | N9: 0.007377165723 | O9: =MAX(C$2:C9) -> 607.4636175 | P9: -0.005 | Q9: 1 | S9: % Riesgo Spot | T9: 0.015 | U9: INPUT — simula y ajusta
A10: 2026-02-09 | B10: 9 | C10: 611.9816282 | D10: 203.9938761 | E10: 407.9877521 | F10: ABIERTO | G10: LOSS | H10: — | I10: 3.059908141 | J10: 6.074636175 | K10: -3.059908141 | L10: 0 | M10: -3.059908141 | N10: 0.01996938029 | O10: =MAX(C$2:C10) -> 611.9816282 | P10: 0 | Q10: -1 | S10: Frecuencia Spot (cada N días) | T10: 6 | U10: Patrón actual: cada 6
A11: 2026-02-10 | B11: 10 | C11: 608.92172 | D11: 202.9739067 | E11: 405.9478134 | F11: ABIERTO | G11: WIN | H11: — | I11: 3.0446086 | J11: 6.074636175 | K11: 7.6115215 | L11: 0 | M11: 7.6115215 | N11: 0.01486953339 | O11: =MAX(C$2:C11) -> 611.9816282 | P11: -0.005 | Q11: 1
A12: 2026-02-11 | B12: 11 | C12: 616.5332415 | D12: 205.5110805 | E12: 411.022161 | F12: ABIERTO | G12: WIN | H12: — | I12: 3.082666208 | J12: 6.074636175 | K12: 7.706665519 | L12: 0 | M12: 7.706665519 | N12: 0.02755540256 | O12: =MAX(C$2:C12) -> 616.5332415 | P12: 0 | Q12: 2 | S12: MÉTRICAS DE RENDIMIENTO
A13: 2026-02-12 | B13: 12 | C13: 624.2399071 | D13: 208.079969 | E13: 416.159938 | F13: CIERRE | G13: WIN | H13: WIN | I13: 3.121199535 | J13: 6.074636175 | K13: 7.802998838 | L13: 15.18659044 | M13: 22.98958928 | N13: 0.04039984509 | O13: =MAX(C$2:C13) -> 624.2399071 | P13: 0 | Q13: 3 | S13: Métrica | T13: Futuros | U13: Spot
A14: 2026-02-13 | B14: 13 | C14: 647.2294963 | D14: 215.7431654 | E14: 431.4863309 | F14: APERTURA | G14: LOSS | H14: — | I14: 3.236147482 | J14: 6.472294963 | K14: -3.236147482 | L14: 0 | M14: -3.236147482 | N14: 0.07871582722 | O14: =MAX(C$2:C14) -> 647.2294963 | P14: 0 | Q14: -1 | S14: Equity Final | T14: =C335 -> 1649.492571
A15: 2026-02-14 | B15: 14 | C15: 643.9933489 | D15: 214.6644496 | E15: 429.3288992 | F15: ABIERTO | G15: LOSS | H15: — | I15: 3.219966744 | J15: 6.472294963 | K15: -3.219966744 | L15: 0 | M15: -3.219966744 | N15: 0.07332224808 | O15: =MAX(C$2:C15) -> 647.2294963 | P15: -0.005 | Q15: -2 | S15: Retorno Total % | T15: =N335 -> 1.749154285
A16: 2026-02-15 | B16: 15 | C16: 640.7733821 | D16: 213.5911274 | E16: 427.1822547 | F16: ABIERTO | G16: WIN | H16: — | I16: 3.203866911 | J16: 6.472294963 | K16: 8.009667276 | L16: 0 | M16: 8.009667276 | N16: 0.06795563684 | O16: =MAX(C$2:C16) -> 647.2294963 | P16: -0.009975 | Q16: 1 | S16: Win Rate Real | T16: =COUNTIF(G2:G335,"WIN")/COUNTA(G2:G335) -> 0.3952095808 | U16: =COUNTIF(H2:H335,"WIN")/(COUNTIF(H2:H335,"WIN")+COUNTIF(H2:H335,"LOSS")) -> 0.4909090909
A17: 2026-02-16 | B17: 16 | C17: 648.7830494 | D17: 216.2610165 | E17: 432.5220329 | F17: ABIERTO | G17: LOSS | H17: — | I17: 3.243915247 | J17: 6.472294963 | K17: -3.243915247 | L17: 0 | M17: -3.243915247 | N17: 0.0813050823 | O17: =MAX(C$2:C17) -> 648.7830494 | P17: 0 | Q17: -1 | S17: Expectativa $ (combinada) | T17: =AVERAGE(M2:M335) -> 3.117500323 | U17: =IF(T17>0,"✅ Expectativa positiva: ganas $"&FIXED(T17,2)&" por trade en promedio","❌ Expectativa negativa") -> ✅ Expectativa positiva: ganas $3,12 por trade en promedio
A18: 2026-02-17 | B18: 17 | C18: 645.5391341 | D18: 215.1797114 | E18: 430.3594228 | F18: ABIERTO | G18: LOSS | H18: — | I18: 3.227695671 | J18: 6.472294963 | K18: -3.227695671 | L18: 0 | M18: -3.227695671 | N18: 0.07589855689 | O18: =MAX(C$2:C18) -> 648.7830494 | P18: -0.005 | Q18: -2 | S18: Profit Factor | T18: =SUMIF(M2:M335,">0")/ABS(SUMIF(M2:M335,"<0")) -> 1.79717518 | U18: =IF(T18>=1.5,"✅ Saludable (>1.5)",IF(T18>=1,"⚠️ Marginal (1-1.5)","❌ Perdiendo (<1)")) -> ✅ Saludable (>1.5)
A19: 2026-02-18 | B19: 18 | C19: 642.3114385 | D19: 214.1038128 | E19: 428.2076256 | F19: CIERRE | G19: LOSS | H19: LOSS | I19: 3.211557192 | J19: 6.472294963 | K19: -3.211557192 | L19: -6.472294963 | M19: -9.683852156 | N19: 0.07051906411 | O19: =MAX(C$2:C19) -> 648.7830494 | P19: -0.009975 | Q19: -3 | S19: Ganancia Promedio (WIN) | T19: =AVERAGEIF(G2:G335,"WIN",K2:K335) -> 14.16951105 | U19: =IFERROR(AVERAGEIF(H2:H335,"WIN",L2:L335),0) -> 26.68111549
A20: 2026-02-19 | B20: 19 | C20: 632.6275863 | D20: 210.8758621 | E20: 421.7517242 | F20: APERTURA | G20: WIN | H20: — | I20: 3.163137932 | J20: 6.326275863 | K20: 7.907844829 | L20: 0 | M20: 7.907844829 | N20: 0.05437931052 | O20: =MAX(C$2:C20) -> 648.7830494 | P20: -0.02490117935 | Q20: 1 | S20: Pérdida Promedio (LOSS) | T20: =AVERAGEIF(G2:G335,"LOSS",K2:K335) -> -5.949208545 | U20: =IFERROR(AVERAGEIF(H2:H335,"LOSS",L2:L335),0) -> -12.42072653
A21: 2026-02-20 | B21: 20 | C21: 640.5354311 | D21: 213.5118104 | E21: 427.0236208 | F21: ABIERTO | G21: WIN | H21: — | I21: 3.202677156 | J21: 6.326275863 | K21: 8.006692889 | L21: 0 | M21: 8.006692889 | N21: 0.0675590519 | O21: =MAX(C$2:C21) -> 648.7830494 | P21: -0.01271244409 | Q21: 2 | S21: R:R Real | T21: =ABS(T19/T20) -> 2.381747243 | U21: =IFERROR(ABS(U19/U20),0) -> 2.148112304
A22: 2026-02-21 | B22: 21 | C22: 648.542124 | D22: 216.180708 | E22: 432.361416 | F22: ABIERTO | G22: WIN | H22: — | I22: 3.24271062 | J22: 6.326275863 | K22: 8.10677655 | L22: 0 | M22: 8.10677655 | N22: 0.08090354005 | O22: =MAX(C$2:C22) -> 648.7830494 | P22: -0.0003713496451 | Q22: 3 | S22: Max Drawdown % | T22: =MIN(P2:P335) -> -0.0667582988 | U22: =IF(T22>-0.2,"✅ Controlado (<20%)",IF(T22>-0.5,"⚠️ Significativo (20-50%)","❌ Severo (>50%)")) -> ✅ Controlado (<20%)
A23: 2026-02-22 | B23: 22 | C23: 656.6489006 | D23: 218.8829669 | E23: 437.7659337 | F23: ABIERTO | G23: LOSS | H23: — | I23: 3.283244503 | J23: 6.326275863 | K23: -3.283244503 | L23: 0 | M23: -3.283244503 | N23: 0.0944148343 | O23: =MAX(C$2:C23) -> 656.6489006 | P23: 0 | Q23: -1 | S23: Racha Máx Ganancias (Futuros) | T23: =MAX(Q2:Q335) -> 6
A24: 2026-02-23 | B24: 23 | C24: 653.3656561 | D24: 217.788552 | E24: 435.577104 | F24: ABIERTO | G24: LOSS | H24: — | I24: 3.26682828 | J24: 6.326275863 | K24: -3.26682828 | L24: 0 | M24: -3.26682828 | N24: 0.08894276012 | O24: =MAX(C$2:C24) -> 656.6489006 | P24: -0.005 | Q24: -2 | S24: Racha Máx Pérdidas (Futuros) | T24: =ABS(MIN(Q2:Q335)) -> 8 | U24: =IF(T24<=8,"✅ Normal para WR 40%","⚠️ Prepárate mentalmente") -> ✅ Normal para WR 40%
A25: 2026-02-24 | B25: 24 | C25: 650.0988278 | D25: 216.6996093 | E25: 433.3992185 | F25: CIERRE | G25: WIN | H25: WIN | I25: 3.250494139 | J25: 6.326275863 | K25: 8.126235347 | L25: 15.81568966 | M25: 23.94192501 | N25: 0.08349804632 | O25: =MAX(C$2:C25) -> 656.6489006 | P25: -0.009975 | Q25: 1 | S25: Total Trades | T25: =COUNTA(G2:G335) -> 334 | U25: =COUNTIF(H2:H335,"WIN")+COUNTIF(H2:H335,"LOSS") -> 55
A26: 2026-02-25 | B26: 25 | C26: 674.0407528 | D26: 224.6802509 | E26: 449.3605019 | F26: APERTURA | G26: WIN | H26: — | I26: 3.370203764 | J26: 6.740407528 | K26: 8.42550941 | L26: 0 | M26: 8.42550941 | N26: 0.1234012547 | O26: =MAX(C$2:C26) -> 674.0407528 | P26: 0 | Q26: 2
A27: 2026-02-26 | B27: 26 | C27: 682.4662622 | D27: 227.4887541 | E27: 454.9775081 | F27: ABIERTO | G27: LOSS | H27: — | I27: 3.412331311 | J27: 6.740407528 | K27: -3.412331311 | L27: 0 | M27: -3.412331311 | N27: 0.1374437703 | O27: =MAX(C$2:C27) -> 682.4662622 | P27: 0 | Q27: -1 | S27: MÉTRICAS AVANZADAS
A28: 2026-02-27 | B28: 27 | C28: 679.0539309 | D28: 226.3513103 | E28: 452.7026206 | F28: ABIERTO | G28: WIN | H28: — | I28: 3.395269654 | J28: 6.740407528 | K28: 8.488174136 | L28: 0 | M28: 8.488174136 | N28: 0.1317565515 | O28: =MAX(C$2:C28) -> 682.4662622 | P28: -0.005 | Q28: 1 | S28: Métrica | T28: Valor | U28: Interpretación
A29: 2026-02-28 | B29: 28 | C29: 687.542105 | D29: 229.1807017 | E29: 458.3614034 | F29: ABIERTO | G29: LOSS | H29: — | I29: 3.437710525 | J29: 6.740407528 | K29: -3.437710525 | L29: 0 | M29: -3.437710525 | N29: 0.1459035084 | O29: =MAX(C$2:C29) -> 687.542105 | P29: 0 | Q29: -1 | S29: Retorno Diario Promedio (%) | T29: =AVERAGE(M2:M335)/C$2 -> 0.005195833872
A30: 2026-03-01 | B30: 29 | C30: 684.1043945 | D30: 228.0347982 | E30: 456.0695963 | F30: ABIERTO | G30: WIN | H30: — | I30: 3.420521973 | J30: 6.740407528 | K30: 8.551304931 | L30: 0 | M30: 8.551304931 | N30: 0.1401739908 | O30: =MAX(C$2:C30) -> 687.542105 | P30: -0.005 | Q30: 1 | S30: Volatilidad Diaria (Desv.Est.) | T30: =STDEV(M2:M335)/C$2 -> 0.02190950224
A31: 2026-03-02 | B31: 30 | C31: =C30+M30 -> 692.6556994 | D31: 230.8852331 | E31: 461.7704663 | F31: CIERRE | G31: LOSS | H31: LOSS | I31: 3.463278497 | J31: 6.740407528 | K31: -3.463278497 | L31: -6.740407528 | M31: -10.20368603 | N31: 0.1544261657 | O31: =MAX(C$2:C31) -> 692.6556994 | P31: 0 | Q31: -1 | S31: Downside Deviation (solo pérdidas) | T31: =SQRT(SUMPRODUCT((IF(M2:M335<0,M2:M335/C$2,0))^2)/COUNT(M2:M335)) -> 0.01017059332
A32: 2026-03-03 | B32: 31 | C32: =C31+M31 -> 682.4520134 | D32: 227.4840045 | E32: 454.9680089 | F32: APERTURA | G32: LOSS | H32: — | I32: 3.412260067 | J32: 6.824520134 | K32: -3.412260067 | L32: 0 | M32: -3.412260067 | N32: 0.1374200224 | O32: =MAX(C$2:C32) -> 692.6556994 | P32: -0.01473125253 | Q32: -2
A33: 2026-03-04 | B33: 32 | C33: 679.0397533 | D33: 226.3465844 | E33: 452.6931689 | F33: ABIERTO | G33: LOSS | H33: — | I33: 3.395198767 | J33: 6.824520134 | K33: -3.395198767 | L33: 0 | M33: -3.395198767 | N33: 0.1317329222 | O33: =MAX(C$2:C33) -> 692.6556994 | P33: -0.01965759627 | Q33: -3 | S33: ⭐ Ratio de Sharpe (anualizado) | T33: =IF(T30=0,0,(T29/T30)*SQRT(365)) -> 4.530740391 | U33: =IF(T33>=2,"✅ Excelente (>2)",IF(T33>=1,"✅ Bueno (1-2)",IF(T33>=0,"⚠️ Bajo (0-1)","❌ Negativo"))) -> ✅ Excelente (>2)
A34: 2026-03-05 | B34: 33 | C34: 675.6445546 | D34: 225.2148515 | E34: 450.4297031 | F34: ABIERTO | G34: LOSS | H34: — | I34: 3.378222773 | J34: 6.824520134 | K34: -3.378222773 | L34: 0 | M34: -3.378222773 | N34: 0.1260742576 | O34: =MAX(C$2:C34) -> 692.6556994 | P34: -0.02455930829 | Q34: -4 | S34: Sharpe = Retorno / Volatilidad × √365
A35: 2026-03-06 | B35: 34 | C35: 672.2663318 | D35: 224.0887773 | E35: 448.1775545 | F35: =IF(MOD(B35-1,$T$10)=0,"APERTURA",IF(MOD(B35,$T$10)=0,"CIERRE",IF(OR(F34="APERTURA",F34="ABIERTO"),"ABIERTO","—"))) -> ABIERTO | G35: WIN | H35: — | I35: 3.361331659 | J35: =IF(F35="APERTURA",E35*$T$9,IF(OR(F35="ABIERTO",F35="CIERRE"),J34,0)) -> 6.824520134 | K35: 8.403329148 | L35: 0 | M35: 8.403329148 | N35: 0.1204438863 | O35: =MAX(C$2:C35) -> 692.6556994 | P35: -0.02943651175 | Q35: 1
A36: 2026-03-07 | B36: 35 | C36: 680.669661 | D36: 226.889887 | E36: 453.779774 | F36: ABIERTO | G36: LOSS | H36: — | I36: 3.403348305 | J36: 6.824520134 | K36: -3.403348305 | L36: 0 | M36: -3.403348305 | N36: 0.1344494349 | O36: =MAX(C$2:C36) -> 692.6556994 | P36: -0.01730446814 | Q36: -1 | S36: ⭐ Ratio de Sortino (anualizado) | T36: =IF(T31=0,0,(T29/T31)*SQRT(365)) -> 9.760125455 | U36: =IF(T36>=2,"✅ Excelente (>2)",IF(T36>=1,"✅ Bueno (1-2)",IF(T36>=0,"⚠️ Bajo (0-1)","❌ Negativo"))) -> ✅ Excelente (>2)
A37: 2026-03-08 | B37: 36 | C37: 677.2663127 | D37: 225.7554376 | E37: 451.5108751 | F37: CIERRE | G37: WIN | H37: WIN | I37: 3.386331563 | J37: 6.824520134 | K37: 8.465828908 | L37: 17.06130034 | M37: 25.52712924 | N37: 0.1287771878 | O37: =MAX(C$2:C37) -> 692.6556994 | P37: -0.0222179458 | Q37: 1 | S37: Sortino = Retorno / Downside Dev × √365
A38: 2026-03-09 | B38: 37 | C38: 702.7934419 | D38: 234.2644806 | E38: 468.5289613 | F38: APERTURA | G38: LOSS | H38: — | I38: 3.513967209 | J38: 7.027934419 | K38: -3.513967209 | L38: 0 | M38: -3.513967209 | N38: 0.1713224032 | O38: =MAX(C$2:C38) -> 702.7934419 | P38: 0 | Q38: -1 | S38: Sortino > Sharpe = las ganancias son más volátiles que las pérdidas (✅ bueno)
A39: 2026-03-10 | B39: 38 | C39: 699.2794747 | D39: 233.0931582 | E39: 466.1863165 | F39: ABIERTO | G39: LOSS | H39: — | I39: 3.496397373 | J39: 7.027934419 | K39: -3.496397373 | L39: 0 | M39: -3.496397373 | N39: 0.1654657911 | O39: =MAX(C$2:C39) -> 702.7934419 | P39: -0.005 | Q39: -2
A40: 2026-03-11 | B40: 39 | C40: 695.7830773 | D40: 231.9276924 | E40: 463.8553849 | F40: ABIERTO | G40: WIN | H40: — | I40: 3.478915387 | J40: 7.027934419 | K40: 8.697288466 | L40: 0 | M40: 8.697288466 | N40: 0.1596384622 | O40: =MAX(C$2:C40) -> 702.7934419 | P40: -0.009975 | Q40: 1 | S40: 💡 SHARPE vs SORTINO:
A41: 2026-03-12 | B41: 40 | C41: 704.4803658 | D41: 234.8267886 | E41: 469.6535772 | F41: ABIERTO | G41: LOSS | H41: — | I41: 3.522401829 | J41: 7.027934419 | K41: -3.522401829 | L41: 0 | M41: -3.522401829 | N41: 0.174133943 | O41: =MAX(C$2:C41) -> 704.4803658 | P41: 0 | Q41: -1 | S41: Sharpe castiga TODA la volatilidad (ganancias grandes también bajan el ratio).
A42: 2026-03-13 | B42: 41 | C42: 700.9579639 | D42: 233.6526546 | E42: 467.3053093 | F42: ABIERTO | G42: WIN | H42: — | I42: 3.50478982 | J42: 7.027934419 | K42: 8.761974549 | L42: 0 | M42: 8.761974549 | N42: 0.1682632732 | O42: =MAX(C$2:C42) -> 704.4803658 | P42: -0.005 | Q42: 1 | S42: Sortino solo castiga la volatilidad NEGATIVA. Más justo para traders.
A43: 2026-03-14 | B43: 42 | C43: 709.7199385 | D43: 236.5733128 | E43: 473.1466257 | F43: CIERRE | G43: LOSS | H43: WIN | I43: 3.548599692 | J43: 7.027934419 | K43: -3.548599692 | L43: 17.56983605 | M43: 14.02123635 | N43: 0.1828665642 | O43: =MAX(C$2:C43) -> 709.7199385 | P43: 0 | Q43: -1 | S43: Si Sortino > Sharpe, tus ganancias son más "explosivas" que tus pérdidas. ✅
A44: 2026-03-15 | B44: 43 | C44: 723.7411749 | D44: 241.2470583 | E44: 482.4941166 | F44: APERTURA | G44: LOSS | H44: — | I44: 3.618705874 | J44: 7.237411749 | K44: -3.618705874 | L44: 0 | M44: -3.618705874 | N44: 0.2062352914 | O44: =MAX(C$2:C44) -> 723.7411749 | P44: 0 | Q44: -2
A45: 2026-03-16 | B45: 44 | C45: 720.122469 | D45: 240.040823 | E45: 480.081646 | F45: ABIERTO | G45: WIN | H45: — | I45: 3.600612345 | J45: 7.237411749 | K45: 9.001530862 | L45: 0 | M45: 9.001530862 | N45: 0.200204115 | O45: =MAX(C$2:C45) -> 723.7411749 | P45: -0.005 | Q45: 1 | S45: PROBABILIDAD DE RUINA — "La Ruina del Jugador"
A46: 2026-03-17 | B46: 45 | C46: 729.1239998 | D46: 243.0413333 | E46: 486.0826666 | F46: ABIERTO | G46: WIN | H46: — | I46: 3.645619999 | J46: 7.237411749 | K46: 9.114049998 | L46: 0 | M46: 9.114049998 | N46: 0.2152066664 | O46: =MAX(C$2:C46) -> 729.1239998 | P46: 0 | Q46: 2 | S46: Si WR < 50% y ganancias = pérdidas (R:R 1:1), la ruina es MATEMÁTICAMENTE SEGURA.
A47: 2026-03-18 | B47: 46 | C47: 738.2380498 | D47: 246.0793499 | E47: 492.1586999 | F47: ABIERTO | G47: WIN | H47: — | I47: 3.691190249 | J47: 7.237411749 | K47: 9.227975623 | L47: 0 | M47: 9.227975623 | N47: 0.2303967497 | O47: =MAX(C$2:C47) -> 738.2380498 | P47: 0 | Q47: 3
A48: 2026-03-19 | B48: 47 | C48: 747.4660255 | D48: 249.1553418 | E48: 498.3106836 | F48: ABIERTO | G48: WIN | H48: — | I48: 3.737330127 | J48: 7.237411749 | K48: 9.343325318 | L48: 0 | M48: 9.343325318 | N48: 0.2457767091 | O48: =MAX(C$2:C48) -> 747.4660255 | P48: 0 | Q48: 4 | S48: ESCENARIO A: Mundo SIN R:R (apuestas 1:1)
A49: 2026-03-20 | B49: 48 | C49: 756.8093508 | D49: 252.2697836 | E49: 504.5395672 | F49: CIERRE | G49: WIN | H49: LOSS | I49: 3.784046754 | J49: 7.237411749 | K49: 9.460116885 | L49: -7.237411749 | M49: 2.222705136 | N49: 0.261348918 | O49: =MAX(C$2:C49) -> 756.8093508 | P49: 0 | Q49: 5 | S49: Win Rate | T49: =T6 -> 0.4 | U49: Pierdes 6 de cada 10 trades.
A50: 2026-03-21 | B50: 49 | C50: 759.0320559 | D50: 253.0106853 | E50: 506.0213706 | F50: APERTURA | G50: WIN | H50: — | I50: 3.79516028 | J50: 7.590320559 | K50: 9.487900699 | L50: 0 | M50: 9.487900699 | N50: 0.2650534265 | O50: =MAX(C$2:C50) -> 759.0320559 | P50: 0 | Q50: 6 | S50: Ratio Pérdida/Ganancia (sin R:R) | T50: =(1-T6)/T6 -> 1.5 | U50: =IF(T50>=1,"❌ ≥1 → sin ventaja estadística","✅ <1 → tienes edge") -> ❌ ≥1 → sin ventaja estadística
A51: 2026-03-22 | B51: 50 | C51: 768.5199566 | D51: 256.1733189 | E51: 512.3466377 | F51: ABIERTO | G51: LOSS | H51: — | I51: 3.842599783 | J51: 7.590320559 | K51: -3.842599783 | L51: 0 | M51: -3.842599783 | N51: 0.2808665944 | O51: =MAX(C$2:C51) -> 768.5199566 | P51: 0 | Q51: -1 | S51: ⭐ P(Ruina) sin R:R | T51: =IF(T50>=1,1,POWER(T50,1/T8)) -> 1 | U51: 💣 100% = RUINA GARANTIZADA si no usas R:R favorable.
A52: 2026-03-23 | B52: 51 | C52: 764.6773568 | D52: 254.8924523 | E52: 509.7849046 | F52: ABIERTO | G52: WIN | H52: — | I52: 3.823386784 | J52: 7.590320559 | K52: 9.55846696 | L52: 0 | M52: 9.55846696 | N52: 0.2744622614 | O52: =MAX(C$2:C52) -> 768.5199566 | P52: -0.005 | Q52: 1
A53: 2026-03-24 | B53: 52 | C53: 774.2358238 | D53: 258.0786079 | E53: 516.1572159 | F53: ABIERTO | G53: WIN | H53: — | I53: 3.871179119 | J53: 7.590320559 | K53: 9.677947797 | L53: 0 | M53: 9.677947797 | N53: 0.2903930397 | O53: =MAX(C$2:C53) -> 774.2358238 | P53: 0 | Q53: 2 | S53: ESCENARIO B: Mundo CON R:R de 1:2.5
A54: 2026-03-25 | B54: 53 | C54: 783.9137716 | D54: 261.3045905 | E54: 522.6091811 | F54: ABIERTO | G54: WIN | H54: — | I54: 3.919568858 | J54: 7.590320559 | K54: 9.798922145 | L54: 0 | M54: 9.798922145 | N54: 0.3065229527 | O54: =MAX(C$2:C54) -> 783.9137716 | P54: 0 | Q54: 3 | S54: Win Rate | T54: =T6 -> 0.4
A55: 2026-03-26 | B55: 54 | C55: 793.7126937 | D55: 264.5708979 | E55: 529.1417958 | F55: CIERRE | G55: LOSS | H55: WIN | I55: 3.968563469 | J55: 7.590320559 | K55: -3.968563469 | L55: 18.9758014 | M55: 15.00723793 | N55: 0.3228544896 | O55: =MAX(C$2:C55) -> 793.7126937 | P55: 0 | Q55: -1 | S55: R:R | T55: =T7 -> 2.5 | U55: =IF(T55<0.0001,"✅ Prácticamente imposible",IF(T55<0.01,"✅ Muy baja (<1%)",IF(T55<0.05,"⚠️ Baja pero real","❌ PELIGRO"))) -> ❌ PELIGRO
A56: 2026-03-27 | B56: 55 | C56: 808.7199317 | D56: 269.5733106 | E56: 539.1466211 | F56: APERTURA | G56: LOSS | H56: — | I56: 4.043599658 | J56: 8.087199317 | K56: -4.043599658 | L56: 0 | M56: -4.043599658 | N56: 0.3478665528 | O56: =MAX(C$2:C56) -> 808.7199317 | P56: 0 | Q56: -2 | S56: Ratio Pérdida/Ganancia (con R:R) | T56: =(1-T6)/(T6*T7) -> 0.6 | U56: =IF(T56>=1,"❌ ≥1 → sin ventaja","✅ "&FIXED(T56,2)&" < 1 → TIENES EDGE (ventaja)") -> ✅ 0,60 < 1 → TIENES EDGE (ventaja)
A57: 2026-03-28 | B57: 56 | C57: 804.676332 | D57: 268.225444 | E57: 536.450888 | F57: ABIERTO | G57: LOSS | H57: — | I57: 4.02338166 | J57: 8.087199317 | K57: -4.02338166 | L57: 0 | M57: -4.02338166 | N57: 0.34112722 | O57: =MAX(C$2:C57) -> 808.7199317 | P57: -0.005 | Q57: -3 | S57: Unidades de riesgo en cuenta | T57: =1/T8 -> 66.66666667 | U57: ="Capital = "&FIXED(T57,0)&" apuestas" -> Capital = 67 apuestas
A58: 2026-03-29 | B58: 57 | C58: 800.6529503 | D58: 266.8843168 | E58: 533.7686336 | F58: ABIERTO | G58: WIN | H58: — | I58: 4.003264752 | J58: 8.087199317 | K58: 10.00816188 | L58: 0 | M58: 10.00816188 | N58: 0.3344215839 | O58: =MAX(C$2:C58) -> 808.7199317 | P58: -0.009975 | Q58: 1 | S58: ⭐ P(Ruina) CON R:R | T58: =IF(T56>=1,1,POWER(T56,T57)) -> 1.622121419e-15 | U58: 🛡️ Prácticamente IMPOSIBLE. El R:R te salva.
A59: 2026-03-30 | B59: 58 | C59: 810.6611122 | D59: 270.2203707 | E59: 540.4407415 | F59: ABIERTO | G59: LOSS | H59: — | I59: 4.053305561 | J59: 8.087199317 | K59: -4.053305561 | L59: 0 | M59: -4.053305561 | N59: 0.3511018537 | O59: =MAX(C$2:C59) -> 810.6611122 | P59: 0 | Q59: -1
A60: 2026-03-31 | B60: 59 | C60: 806.6078067 | D60: 268.8692689 | E60: 537.7385378 | F60: ABIERTO | G60: WIN | H60: — | I60: 4.033039033 | J60: 8.087199317 | K60: 10.08259758 | L60: 0 | M60: 10.08259758 | N60: 0.3443463444 | O60: =MAX(C$2:C60) -> 810.6611122 | P60: -0.005 | Q60: 1 | S60: 🎯 LA LECCIÓN CENTRAL:
A61: 2026-04-01 | B61: 60 | C61: 816.6904042 | D61: 272.2301347 | E61: 544.4602695 | F61: CIERRE | G61: WIN | H61: LOSS | I61: 4.083452021 | J61: 8.087199317 | K61: 10.20863005 | L61: -8.087199317 | M61: 2.121430736 | N61: 0.3611506737 | O61: =MAX(C$2:C61) -> 816.6904042 | P61: 0 | Q61: 2 | S61: Con WR 40% y apuestas 1:1, estás CONDENADO a quebrar (100% de probabilidad).
A62: 2026-04-02 | B62: 61 | C62: 818.811835 | D62: 272.9372783 | E62: 545.8745567 | F62: APERTURA | G62: LOSS | H62: — | I62: 4.094059175 | J62: 8.18811835 | K62: -4.094059175 | L62: 0 | M62: -4.094059175 | N62: 0.3646863916 | O62: =MAX(C$2:C62) -> 818.811835 | P62: 0 | Q62: -1 | S62: Con WR 40% pero R:R 1:2.5, la ruina es prácticamente IMPOSIBLE (0.0000000000%).
A63: 2026-04-03 | B63: 62 | C63: 814.7177758 | D63: 271.5725919 | E63: 543.1451839 | F63: ABIERTO | G63: WIN | H63: — | I63: 4.073588879 | J63: 8.18811835 | K63: 10.1839722 | L63: 0 | M63: 10.1839722 | N63: 0.3578629597 | O63: =MAX(C$2:C63) -> 818.811835 | P63: -0.005 | Q63: 1 | S63: El R:R NO es un "nice to have". Es la DIFERENCIA entre sobrevivir y quebrar.
A64: 2026-04-04 | B64: 63 | C64: 824.901748 | D64: 274.9672493 | E64: 549.9344987 | F64: ABIERTO | G64: WIN | H64: — | I64: 4.12450874 | J64: 8.18811835 | K64: 10.31127185 | L64: 0 | M64: 10.31127185 | N64: 0.3748362467 | O64: =MAX(C$2:C64) -> 824.901748 | P64: 0 | Q64: 2 | S64: REGLAS DE STOP-TRADING — "Control Emocional"
A65: 2026-04-05 | B65: 64 | C65: 835.2130199 | D65: 278.40434 | E65: 556.8086799 | F65: ABIERTO | G65: LOSS | H65: — | I65: 4.176065099 | J65: 8.18811835 | K65: -4.176065099 | L65: 0 | M65: -4.176065099 | N65: 0.3920216998 | O65: =MAX(C$2:C65) -> 835.2130199 | P65: 0 | Q65: -1 | S65: PRUEBA DE ESTRÉS: ¿Cuántas pérdidas seguidas para -50%?
A66: 2026-04-06 | B66: 65 | C66: 831.0369548 | D66: =C66*($T$3/$T$5) -> 277.0123183 | E66: =C66*($T$4/$T$5) -> 554.0246365 | F66: ABIERTO | G66: =IF(RAND()+0*$V$1<=$T$6,"WIN","LOSS") -> LOSS | H66: =IF(F66="CIERRE",IF(RAND()+0*$V$1<=$T$6,"WIN","LOSS"),"—") -> — | I66: 4.155184774 | J66: 8.18811835 | K66: -4.155184774 | L66: 0 | M66: -4.155184774 | N66: 0.3850615913 | O66: =MAX(C$2:C66) -> 835.2130199 | P66: -0.005 | Q66: -2 | S66: Con tu riesgo de 1.5%: | T66: =ROUND(LN(0.5)/LN(1-T8),0) -> 46 | U66: ="Necesitas "&T66&" pérdidas SEGUIDAS para perder 50%" -> Necesitas 46 pérdidas SEGUIDAS para perder 50%
A67: 2026-04-07 | B67: 66 | C67: =C66+M66 -> 826.88177 | D67: 275.6272567 | E67: 551.2545133 | F67: CIERRE | G67: WIN | H67: LOSS | I67: 4.13440885 | J67: 8.18811835 | K67: 10.33602212 | L67: -8.18811835 | M67: 2.147903775 | N67: 0.3781362833 | O67: =MAX(C$2:C67) -> 835.2130199 | P67: -0.009975 | Q67: 1 | S67: Probabilidad de esa racha: | T67: =POWER(1-T6,T66) -> 6.236738252e-11 | U67: ✅ Virtualmente imposible.
A68: 2026-04-08 | B68: 67 | C68: 829.0296738 | D68: 276.3432246 | E68: 552.6864492 | F68: =IF(MOD(B68-1,$T$10)=0,"APERTURA",IF(MOD(B68,$T$10)=0,"CIERRE",IF(OR(F67="APERTURA",F67="ABIERTO"),"ABIERTO","—"))) -> APERTURA | G68: WIN | H68: — | I68: =D68*$T$8 -> 4.145148369 | J68: =IF(F68="APERTURA",E68*$T$9,IF(OR(F68="ABIERTO",F68="CIERRE"),J67,0)) -> 8.290296738 | K68: =IF(G68="WIN",I68*$T$7,-I68) -> 10.36287092 | L68: =IF(F68="CIERRE",IF(H68="WIN",J68*$T$7,-J68),0) -> 0 | M68: =K68+L68 -> 10.36287092 | N68: =(C68/C$2-1) -> 0.3817161229 | O68: =MAX(C$2:C68) -> 835.2130199 | P68: =C68/O68-1 -> -0.007403316221 | Q68: =IF(G68=G67,IF(G68="WIN",Q67+1,Q67-1),IF(G68="WIN",1,-1)) -> 2 | S68: 🛑 Max DD diario para PAUSA | T68: -0.1 | U68: =IF(T22<T68,"🚨 DD simulado "&FIXED(T22*100,1)&"% EXCEDE límite","✅ DD "&FIXED(T22*100,1)&"% dentro del límite") -> ✅ DD -6,7% dentro del límite
A69: 2026-04-09 | B69: 68 | C69: 839.3925447 | D69: 279.7975149 | E69: 559.5950298 | F69: ABIERTO | G69: LOSS | H69: — | I69: 4.196962723 | J69: 8.290296738 | K69: -4.196962723 | L69: 0 | M69: -4.196962723 | N69: 0.3989875745 | O69: =MAX(C$2:C69) -> 839.3925447 | P69: 0 | Q69: -1 | S69: ⚠️ PERO si subieras el riesgo a 10%: | T69: =ROUND(LN(0.5)/LN(1-0.1),0) -> 7 | U69: ="Solo "&T69&" pérdidas seguidas para -50%" -> Solo 7 pérdidas seguidas para -50%
A70: 2026-04-10 | B70: 69 | C70: 835.195582 | D70: 278.3985273 | E70: 556.7970546 | F70: ABIERTO | G70: LOSS | H70: — | I70: 4.17597791 | J70: 8.290296738 | K70: -4.17597791 | L70: 0 | M70: -4.17597791 | N70: 0.3919926366 | O70: =MAX(C$2:C70) -> 839.3925447 | P70: -0.005 | Q70: -2 | S70: Probabilidad de 7 losses seguidos: | T70: =POWER(1-T6,T69) -> 0.0279936 | U70: ❌ ESO SÍ PASA. Por eso el sizing importa.
A71: 2026-04-11 | B71: 70 | C71: 831.019604 | D71: 277.0065347 | E71: 554.0130694 | F71: ABIERTO | G71: WIN | H71: — | I71: 4.15509802 | J71: 8.290296738 | K71: 10.38774505 | L71: 0 | M71: 10.38774505 | N71: 0.3850326734 | O71: =MAX(C$2:C71) -> 839.3925447 | P71: -0.009975 | Q71: 1 | S71: 🛑 Max trades por día | T71: 3 | U71: Anti-overtrading: calidad > cantidad.
A72: 2026-04-12 | B72: 71 | C72: 841.4073491 | D72: 280.4691164 | E72: 560.9382327 | F72: ABIERTO | G72: LOSS | H72: — | I72: 4.207036745 | J72: 8.290296738 | K72: -4.207036745 | L72: 0 | M72: -4.207036745 | N72: 0.4023455818 | O72: =MAX(C$2:C72) -> 841.4073491 | P72: 0 | Q72: -1
A73: 2026-04-13 | B73: 72 | C73: 837.2003124 | D73: 279.0667708 | E73: 558.1335416 | F73: CIERRE | G73: LOSS | H73: WIN | I73: 4.186001562 | J73: 8.290296738 | K73: -4.186001562 | L73: 20.72574184 | M73: 16.53974028 | N73: 0.3953338539 | O73: =MAX(C$2:C73) -> 841.4073491 | P73: -0.005 | Q73: -2 | S73: 🧠 PSICOLOGÍA DEL RIESGO — Notas de Clase
A74: 2026-04-14 | B74: 73 | C74: 853.7400526 | D74: 284.5800175 | E74: 569.1600351 | F74: APERTURA | G74: WIN | H74: — | I74: 4.268700263 | J74: 8.537400526 | K74: 10.67175066 | L74: 0 | M74: 10.67175066 | N74: 0.4229000877 | O74: =MAX(C$2:C74) -> 853.7400526 | P74: 0 | Q74: 1
A75: 2026-04-15 | B75: 74 | C75: 864.4118033 | D75: 288.1372678 | E75: 576.2745355 | F75: ABIERTO | G75: WIN | H75: — | I75: 4.322059016 | J75: 8.537400526 | K75: 10.80514754 | L75: 0 | M75: 10.80514754 | N75: 0.4406863388 | O75: =MAX(C$2:C75) -> 864.4118033 | P75: 0 | Q75: 2 | S75: Sesgo | T75: Dónde aparece en este modelo | U75: Antidoto
A76: 2026-04-16 | B76: 75 | C76: 875.2169508 | D76: 291.7389836 | E76: 583.4779672 | F76: ABIERTO | G76: WIN | H76: — | I76: 4.376084754 | J76: 8.537400526 | K76: 10.94021189 | L76: 0 | M76: 10.94021189 | N76: 0.4586949181 | O76: =MAX(C$2:C76) -> 875.2169508 | P76: 0 | Q76: 3 | S76: 🧠 Aversión a la Pérdida | T76: Cuando el DD baja y quieres cerrar ANTES del SL, o no tomar el trade por miedo. | U76: Mira la col P (DD%): las caídas SON normales. Revisa la tabla de Asimetría.
A77: 2026-04-17 | B77: 76 | C77: 886.1571627 | D77: 295.3857209 | E77: 590.7714418 | F77: ABIERTO | G77: LOSS | H77: — | I77: 4.430785814 | J77: 8.537400526 | K77: -4.430785814 | L77: 0 | M77: -4.430785814 | N77: 0.4769286045 | O77: =MAX(C$2:C77) -> 886.1571627 | P77: 0 | Q77: -1 | S77: 🧠 Sesgo de Recencia | T77: Después de 3 wins seguidos crees que "todo sube". Después de 3 losses crees que "todo baja". | U77: Mira la col Q (rachas): los streaks son NORMALES con 40% WR. No predicen nada.
A78: 2026-04-18 | B78: 77 | C78: 881.7263769 | D78: 293.9087923 | E78: 587.8175846 | F78: ABIERTO | G78: LOSS | H78: — | I78: 4.408631885 | J78: 8.537400526 | K78: -4.408631885 | L78: 0 | M78: -4.408631885 | N78: 0.4695439615 | O78: =MAX(C$2:C78) -> 886.1571627 | P78: -0.005 | Q78: -2 | S78: 🧠 Falacia del Apostador | T78: "Ya llevo 5 losses, TOCA ganar". NO. Cada trade es independiente. | U78: Cada RAND() es independiente. 6 losses seguidos NO aumenta el WR del séptimo.
A79: 2026-04-19 | B79: 78 | C79: 877.317745 | D79: 292.4392483 | E79: 584.8784967 | F79: CIERRE | G79: WIN | H79: WIN | I79: 4.386588725 | J79: 8.537400526 | K79: 10.96647181 | L79: 21.34350132 | M79: 32.30997313 | N79: 0.4621962417 | O79: =MAX(C$2:C79) -> 886.1571627 | P79: -0.009975 | Q79: 1 | S79: 🧠 Overtrading | T79: Después de perder quieres "recuperar" con más trades. Resultado: más pérdidas. | U79: Regla Stop-Trading: máx 3 trades/día. Si pierdes el límite, APAGA la pantalla.
A80: 2026-04-20 | B80: 79 | C80: 909.6277182 | D80: 303.2092394 | E80: 606.4184788 | F80: APERTURA | G80: LOSS | H80: — | I80: 4.548138591 | J80: 9.096277182 | K80: -4.548138591 | L80: 0 | M80: -4.548138591 | N80: 0.5160461969 | O80: =MAX(C$2:C80) -> 909.6277182 | P80: 0 | Q80: -1
A81: 2026-04-21 | B81: 80 | C81: 905.0795796 | D81: 301.6931932 | E81: 603.3863864 | F81: ABIERTO | G81: LOSS | H81: — | I81: 4.525397898 | J81: 9.096277182 | K81: -4.525397898 | L81: 0 | M81: -4.525397898 | N81: 0.5084659659 | O81: =MAX(C$2:C81) -> 909.6277182 | P81: -0.005 | Q81: -2 | S81: 💡 Regla de oro: El simulador Monte Carlo demuestra que un sistema con edge GANA a largo plazo.
A82: 2026-04-22 | B82: 81 | C82: 900.5541817 | D82: 300.1847272 | E82: 600.3694544 | F82: ABIERTO | G82: LOSS | H82: — | I82: 4.502770908 | J82: 9.096277182 | K82: -4.502770908 | L82: 0 | M82: -4.502770908 | N82: 0.5009236361 | O82: =MAX(C$2:C82) -> 909.6277182 | P82: -0.009975 | Q82: -3 | S82: Tu TRABAJO como trader no es ganar cada trade. Es SEGUIR EL PLAN trade tras trade.
A83: 2026-04-23 | B83: 82 | C83: 896.0514108 | D83: 298.6838036 | E83: 597.3676072 | F83: ABIERTO | G83: LOSS | H83: — | I83: 4.480257054 | J83: 9.096277182 | K83: -4.480257054 | L83: 0 | M83: -4.480257054 | N83: 0.4934190179 | O83: =MAX(C$2:C83) -> 909.6277182 | P83: -0.014925125 | Q83: -4 | S83: Los sesgos te empujan a cambiar el plan. Las reglas te protegen de ti mismo.
A84: 2026-04-24 | B84: 83 | C84: 891.5711537 | D84: 297.1903846 | E84: 594.3807691 | F84: ABIERTO | G84: WIN | H84: — | I84: 4.457855769 | J84: 9.096277182 | K84: 11.14463942 | L84: 0 | M84: 11.14463942 | N84: 0.4859519228 | O84: =MAX(C$2:C84) -> 909.6277182 | P84: -0.01985049938 | Q84: 1
A85: 2026-04-25 | B85: 84 | C85: 902.7157931 | D85: 300.9052644 | E85: 601.8105287 | F85: CIERRE | G85: LOSS | H85: WIN | I85: 4.513578966 | J85: 9.096277182 | K85: -4.513578966 | L85: 22.74069295 | M85: 18.22711399 | N85: 0.5045263219 | O85: =MAX(C$2:C85) -> 909.6277182 | P85: -0.007598630617 | Q85: -1
A86: 2026-04-26 | B86: 85 | C86: 920.9429071 | D86: 306.980969 | E86: 613.9619381 | F86: APERTURA | G86: LOSS | H86: — | I86: 4.604714536 | J86: 9.209429071 | K86: -4.604714536 | L86: 0 | M86: -4.604714536 | N86: 0.5349048452 | O86: =MAX(C$2:C86) -> 920.9429071 | P86: 0 | Q86: -2
A87: 2026-04-27 | B87: 86 | C87: 916.3381926 | D87: 305.4460642 | E87: 610.8921284 | F87: ABIERTO | G87: WIN | H87: — | I87: 4.581690963 | J87: 9.209429071 | K87: 11.45422741 | L87: 0 | M87: 11.45422741 | N87: 0.527230321 | O87: =MAX(C$2:C87) -> 920.9429071 | P87: -0.005 | Q87: 1
A88: 2026-04-28 | B88: 87 | C88: 927.79242 | D88: 309.26414 | E88: 618.52828 | F88: ABIERTO | G88: LOSS | H88: — | I88: 4.6389621 | J88: 9.209429071 | K88: -4.6389621 | L88: 0 | M88: -4.6389621 | N88: 0.5463207 | O88: =MAX(C$2:C88) -> 927.79242 | P88: 0 | Q88: -1
A89: 2026-04-29 | B89: 88 | C89: 923.1534579 | D89: 307.7178193 | E89: 615.4356386 | F89: ABIERTO | G89: LOSS | H89: — | I89: 4.615767289 | J89: 9.209429071 | K89: -4.615767289 | L89: 0 | M89: -4.615767289 | N89: 0.5385890965 | O89: =MAX(C$2:C89) -> 927.79242 | P89: -0.005 | Q89: -2
A90: 2026-04-30 | B90: 89 | C90: 918.5376906 | D90: 306.1792302 | E90: 612.3584604 | F90: ABIERTO | G90: WIN | H90: — | I90: 4.592688453 | J90: 9.209429071 | K90: 11.48172113 | L90: 0 | M90: 11.48172113 | N90: 0.530896151 | O90: =MAX(C$2:C90) -> 927.79242 | P90: -0.009975 | Q90: 1
A91: 2026-05-01 | B91: 90 | C91: 930.0194117 | D91: 310.0064706 | E91: 620.0129411 | F91: CIERRE | G91: WIN | H91: WIN | I91: 4.650097059 | J91: 9.209429071 | K91: 11.62524265 | L91: 23.02357268 | M91: 34.64881532 | N91: 0.5500323529 | O91: =MAX(C$2:C91) -> 930.0194117 | P91: 0 | Q91: 2
A92: 2026-05-02 | B92: 91 | C92: 964.668227 | D92: 321.5560757 | E92: 643.1121514 | F92: APERTURA | G92: LOSS | H92: — | I92: 4.823341135 | J92: 9.64668227 | K92: -4.823341135 | L92: 0 | M92: -4.823341135 | N92: 0.6077803784 | O92: =MAX(C$2:C92) -> 964.668227 | P92: 0 | Q92: -1
A93: 2026-05-03 | B93: 92 | C93: 959.8448859 | D93: 319.9482953 | E93: 639.8965906 | F93: ABIERTO | G93: WIN | H93: — | I93: 4.79922443 | J93: 9.64668227 | K93: 11.99806107 | L93: 0 | M93: 11.99806107 | N93: 0.5997414765 | O93: =MAX(C$2:C93) -> 964.668227 | P93: -0.005 | Q93: 1
A94: 2026-05-04 | B94: 93 | C94: 971.842947 | D94: 323.947649 | E94: 647.895298 | F94: ABIERTO | G94: WIN | H94: — | I94: 4.859214735 | J94: 9.64668227 | K94: 12.14803684 | L94: 0 | M94: 12.14803684 | N94: 0.619738245 | O94: =MAX(C$2:C94) -> 971.842947 | P94: 0 | Q94: 2
A95: 2026-05-05 | B95: 94 | C95: 983.9909838 | D95: 327.9969946 | E95: 655.9939892 | F95: ABIERTO | G95: WIN | H95: — | I95: 4.919954919 | J95: 9.64668227 | K95: 12.2998873 | L95: 0 | M95: 12.2998873 | N95: 0.639984973 | O95: =MAX(C$2:C95) -> 983.9909838 | P95: 0 | Q95: 3
A96: 2026-05-06 | B96: 95 | C96: 996.2908711 | D96: 332.096957 | E96: 664.1939141 | F96: ABIERTO | G96: LOSS | H96: — | I96: 4.981454356 | J96: 9.64668227 | K96: -4.981454356 | L96: 0 | M96: -4.981454356 | N96: 0.6604847852 | O96: =MAX(C$2:C96) -> 996.2908711 | P96: 0 | Q96: -1
A97: 2026-05-07 | B97: 96 | C97: 991.3094168 | D97: 330.4364723 | E97: 660.8729445 | F97: CIERRE | G97: WIN | H97: LOSS | I97: 4.956547084 | J97: 9.64668227 | K97: 12.39136771 | L97: -9.64668227 | M97: 2.744685439 | N97: 0.6521823613 | O97: =MAX(C$2:C97) -> 996.2908711 | P97: -0.005 | Q97: 1
A98: 2026-05-08 | B98: 97 | C98: 994.0541022 | D98: 331.3513674 | E98: 662.7027348 | F98: APERTURA | G98: LOSS | H98: — | I98: 4.970270511 | J98: 9.940541022 | K98: -4.970270511 | L98: 0 | M98: -4.970270511 | N98: 0.656756837 | O98: =MAX(C$2:C98) -> 996.2908711 | P98: -0.002245096268 | Q98: -1
A99: 2026-05-09 | B99: 98 | C99: 989.0838317 | D99: 329.6946106 | E99: 659.3892211 | F99: ABIERTO | G99: LOSS | H99: — | I99: 4.945419158 | J99: 9.940541022 | K99: -4.945419158 | L99: 0 | M99: -4.945419158 | N99: 0.6484730528 | O99: =MAX(C$2:C99) -> 996.2908711 | P99: -0.007233870787 | Q99: -2
A100: 2026-05-10 | B100: 99 | C100: 984.1384125 | D100: 328.0461375 | E100: 656.092275 | F100: ABIERTO | G100: WIN | H100: — | I100: 4.920692063 | J100: 9.940541022 | K100: 12.30173016 | L100: 0 | M100: 12.30173016 | N100: 0.6402306876 | O100: =MAX(C$2:C100) -> 996.2908711 | P100: -0.01219770143 | Q100: 1
A101: 2026-05-11 | B101: 100 | C101: 996.4401427 | D101: 332.1467142 | E101: 664.2934285 | F101: ABIERTO | G101: WIN | H101: — | I101: 4.982200713 | J101: 9.940541022 | K101: 12.45550178 | L101: 0 | M101: 12.45550178 | N101: 0.6607335712 | O101: =MAX(C$2:C101) -> 996.4401427 | P101: 0 | Q101: 2
A102: 2026-05-12 | B102: 101 | C102: 1008.895644 | D102: 336.2985482 | E102: 672.5970963 | F102: ABIERTO | G102: WIN | H102: — | I102: 5.044478222 | J102: 9.940541022 | K102: 12.61119556 | L102: 0 | M102: 12.61119556 | N102: 0.6814927408 | O102: =MAX(C$2:C102) -> 1008.895644 | P102: 0 | Q102: 3
A103: 2026-05-13 | B103: 102 | C103: 1021.50684 | D103: 340.50228 | E103: 681.00456 | F103: CIERRE | G103: LOSS | H103: WIN | I103: 5.1075342 | J103: 9.940541022 | K103: -5.1075342 | L103: 24.85135256 | M103: 19.74381835 | N103: 0.7025114001 | O103: =MAX(C$2:C103) -> 1021.50684 | P103: 0 | Q103: -1
A104: 2026-05-14 | B104: 103 | C104: 1041.250658 | D104: 347.0835528 | E104: 694.1671056 | F104: APERTURA | G104: WIN | H104: — | I104: 5.206253292 | J104: 10.41250658 | K104: 13.01563323 | L104: 0 | M104: 13.01563323 | N104: 0.735417764 | O104: =MAX(C$2:C104) -> 1041.250658 | P104: 0 | Q104: 1
A105: 2026-05-15 | B105: 104 | C105: 1054.266292 | D105: 351.4220972 | E105: 702.8441944 | F105: ABIERTO | G105: LOSS | H105: — | I105: 5.271331458 | J105: 10.41250658 | K105: -5.271331458 | L105: 0 | M105: -5.271331458 | N105: 0.757110486 | O105: =MAX(C$2:C105) -> 1054.266292 | P105: 0 | Q105: -1
A106: 2026-05-16 | B106: 105 | C106: 1048.99496 | D106: 349.6649867 | E106: 699.3299734 | F106: ABIERTO | G106: WIN | H106: — | I106: 5.244974801 | J106: 10.41250658 | K106: 13.112437 | L106: 0 | M106: 13.112437 | N106: 0.7483249336 | O106: =MAX(C$2:C106) -> 1054.266292 | P106: -0.005 | Q106: 1
A107: 2026-05-17 | B107: 106 | C107: 1062.107397 | D107: 354.0357991 | E107: 708.0715981 | F107: ABIERTO | G107: WIN | H107: — | I107: 5.310536986 | J107: 10.41250658 | K107: 13.27634246 | L107: 0 | M107: 13.27634246 | N107: 0.7701789953 | O107: =MAX(C$2:C107) -> 1062.107397 | P107: 0 | Q107: 2
A108: 2026-05-18 | B108: 107 | C108: 1075.38374 | D108: 358.4612465 | E108: 716.9224931 | F108: ABIERTO | G108: LOSS | H108: — | I108: 5.376918698 | J108: 10.41250658 | K108: -5.376918698 | L108: 0 | M108: -5.376918698 | N108: 0.7923062327 | O108: =MAX(C$2:C108) -> 1075.38374 | P108: 0 | Q108: -1
A109: 2026-05-19 | B109: 108 | C109: 1070.006821 | D109: 356.6689403 | E109: 713.3378806 | F109: CIERRE | G109: LOSS | H109: WIN | I109: 5.350034105 | J109: 10.41250658 | K109: -5.350034105 | L109: 26.03126646 | M109: 20.68123236 | N109: 0.7833447015 | O109: =MAX(C$2:C109) -> 1075.38374 | P109: -0.005 | Q109: -2
A110: 2026-05-20 | B110: 109 | C110: 1090.688053 | D110: 363.5626844 | E110: 727.1253689 | F110: APERTURA | G110: LOSS | H110: — | I110: 5.453440266 | J110: 10.90688053 | K110: -5.453440266 | L110: 0 | M110: -5.453440266 | N110: 0.8178134221 | O110: =MAX(C$2:C110) -> 1090.688053 | P110: 0 | Q110: -3
A111: 2026-05-21 | B111: 110 | C111: 1085.234613 | D111: 361.744871 | E111: 723.489742 | F111: ABIERTO | G111: WIN | H111: — | I111: 5.426173065 | J111: 10.90688053 | K111: 13.56543266 | L111: 0 | M111: 13.56543266 | N111: 0.808724355 | O111: =MAX(C$2:C111) -> 1090.688053 | P111: -0.005 | Q111: 1
A112: 2026-05-22 | B112: 111 | C112: 1098.800046 | D112: 366.2666819 | E112: 732.5333638 | F112: ABIERTO | G112: LOSS | H112: — | I112: 5.494000228 | J112: 10.90688053 | K112: -5.494000228 | L112: 0 | M112: -5.494000228 | N112: 0.8313334095 | O112: =MAX(C$2:C112) -> 1098.800046 | P112: 0 | Q112: -1
A113: 2026-05-23 | B113: 112 | C113: 1093.306045 | D113: 364.4353485 | E113: 728.870697 | F113: ABIERTO | G113: LOSS | H113: — | I113: 5.466530227 | J113: 10.90688053 | K113: -5.466530227 | L113: 0 | M113: -5.466530227 | N113: 0.8221767424 | O113: =MAX(C$2:C113) -> 1098.800046 | P113: -0.005 | Q113: -2
A114: 2026-05-24 | B114: 113 | C114: 1087.839515 | D114: 362.6131717 | E114: 725.2263435 | F114: ABIERTO | G114: LOSS | H114: — | I114: 5.439197576 | J114: 10.90688053 | K114: -5.439197576 | L114: 0 | M114: -5.439197576 | N114: 0.8130658587 | O114: =MAX(C$2:C114) -> 1098.800046 | P114: -0.009975 | Q114: -3
A115: 2026-05-25 | B115: 114 | C115: 1082.400318 | D115: 360.8001059 | E115: 721.6002118 | F115: CIERRE | G115: LOSS | H115: LOSS | I115: 5.412001588 | J115: 10.90688053 | K115: -5.412001588 | L115: -10.90688053 | M115: -16.31888212 | N115: 0.8040005294 | O115: =MAX(C$2:C115) -> 1098.800046 | P115: -0.014925125 | Q115: -4
A116: 2026-05-26 | B116: 115 | C116: 1066.081436 | D116: 355.3604785 | E116: 710.720957 | F116: APERTURA | G116: LOSS | H116: — | I116: 5.330407178 | J116: 10.66081436 | K116: -5.330407178 | L116: 0 | M116: -5.330407178 | N116: 0.7768023925 | O116: =MAX(C$2:C116) -> 1098.800046 | P116: -0.02977667346 | Q116: -5
A117: 2026-05-27 | B117: 116 | C117: 1060.751028 | D117: 353.5836761 | E117: 707.1673522 | F117: ABIERTO | G117: WIN | H117: — | I117: 5.303755142 | J117: 10.66081436 | K117: 13.25938785 | L117: 0 | M117: 13.25938785 | N117: 0.7679183806 | O117: =MAX(C$2:C117) -> 1098.800046 | P117: -0.03462779009 | Q117: 1
A118: 2026-05-28 | B118: 117 | C118: 1074.010416 | D118: 358.0034721 | E118: 716.0069441 | F118: ABIERTO | G118: LOSS | H118: — | I118: 5.370052081 | J118: 10.66081436 | K118: -5.370052081 | L118: 0 | M118: -5.370052081 | N118: 0.7900173603 | O118: =MAX(C$2:C118) -> 1098.800046 | P118: -0.02256063746 | Q118: -1
A119: 2026-05-29 | B119: 118 | C119: 1068.640364 | D119: 356.2134547 | E119: 712.4269094 | F119: ABIERTO | G119: LOSS | H119: — | I119: 5.343201821 | J119: 10.66081436 | K119: -5.343201821 | L119: 0 | M119: -5.343201821 | N119: 0.7810672735 | O119: =MAX(C$2:C119) -> 1098.800046 | P119: -0.02744783428 | Q119: -2
A120: 2026-05-30 | B120: 119 | C120: 1063.297162 | D120: 354.4323874 | E120: 708.8647749 | F120: ABIERTO | G120: WIN | H120: — | I120: 5.316485812 | J120: 10.66081436 | K120: 13.29121453 | L120: 0 | M120: 13.29121453 | N120: 0.7721619372 | O120: =MAX(C$2:C120) -> 1098.800046 | P120: -0.03231059511 | Q120: 1
A121: 2026-05-31 | B121: 120 | C121: 1076.588377 | D121: 358.8627923 | E121: 717.7255846 | F121: CIERRE | G121: LOSS | H121: WIN | I121: 5.382941884 | J121: 10.66081436 | K121: -5.382941884 | L121: 26.65203589 | M121: 21.269094 | N121: 0.7943139614 | O121: =MAX(C$2:C121) -> 1098.800046 | P121: -0.02021447754 | Q121: -1
A122: 2026-06-01 | B122: 121 | C122: 1097.857471 | D122: 365.9524903 | E122: 731.9049806 | F122: APERTURA | G122: LOSS | H122: — | I122: 5.489287354 | J122: 10.97857471 | K122: -5.489287354 | L122: 0 | M122: -5.489287354 | N122: 0.8297624514 | O122: =MAX(C$2:C122) -> 1098.800046 | P122: -0.0008578219929 | Q122: -2
A123: 2026-06-02 | B123: 122 | C123: 1092.368183 | D123: 364.1227278 | E123: 728.2454557 | F123: ABIERTO | G123: LOSS | H123: — | I123: 5.461840917 | J123: 10.97857471 | K123: -5.461840917 | L123: 0 | M123: -5.461840917 | N123: 0.8206136391 | O123: =MAX(C$2:C123) -> 1098.800046 | P123: -0.005853532883 | Q123: -3
A124: 2026-06-03 | B124: 123 | C124: 1086.906343 | D124: 362.3021142 | E124: 724.6042284 | F124: ABIERTO | G124: LOSS | H124: — | I124: 5.434531713 | J124: 10.97857471 | K124: -5.434531713 | L124: 0 | M124: -5.434531713 | N124: 0.8115105709 | O124: =MAX(C$2:C124) -> 1098.800046 | P124: -0.01082426522 | Q124: -4
A125: 2026-06-04 | B125: 124 | C125: 1081.471811 | D125: 360.4906036 | E125: 720.9812072 | F125: ABIERTO | G125: LOSS | H125: — | I125: 5.407359054 | J125: 10.97857471 | K125: -5.407359054 | L125: 0 | M125: -5.407359054 | N125: 0.8024530181 | O125: =MAX(C$2:C125) -> 1098.800046 | P125: -0.01577014389 | Q125: -5
A126: 2026-06-05 | B126: 125 | C126: 1076.064452 | D126: 358.6881506 | E126: 717.3763012 | F126: ABIERTO | G126: WIN | H126: — | I126: 5.380322259 | J126: 10.97857471 | K126: 13.45080565 | L126: 0 | M126: 13.45080565 | N126: 0.793440753 | O126: =MAX(C$2:C126) -> 1098.800046 | P126: -0.02069129317 | Q126: 1
A127: 2026-06-06 | B127: 126 | C127: 1089.515257 | D127: 363.1717525 | E127: 726.343505 | F127: CIERRE | G127: WIN | H127: LOSS | I127: 5.447576287 | J127: 10.97857471 | K127: 13.61894072 | L127: -10.97857471 | M127: 2.64036601 | N127: 0.8158587624 | O127: =MAX(C$2:C127) -> 1098.800046 | P127: -0.008449934338 | Q127: 2
A128: 2026-06-07 | B128: 127 | C128: 1092.155623 | D128: 364.0518745 | E128: 728.103749 | F128: APERTURA | G128: LOSS | H128: — | I128: 5.460778117 | J128: 10.92155623 | K128: -5.460778117 | L128: 0 | M128: -5.460778117 | N128: 0.8202593724 | O128: =MAX(C$2:C128) -> 1098.800046 | P128: -0.006046980297 | Q128: -1
A129: 2026-06-08 | B129: 128 | C129: 1086.694845 | D129: 362.2316151 | E129: 724.4632302 | F129: ABIERTO | G129: LOSS | H129: — | I129: 5.433474227 | J129: 10.92155623 | K129: -5.433474227 | L129: 0 | M129: -5.433474227 | N129: 0.8111580756 | O129: =MAX(C$2:C129) -> 1098.800046 | P129: -0.0110167454 | Q129: -2
A130: 2026-06-09 | B130: 129 | C130: 1081.261371 | D130: =C130*($T$3/$T$5) -> 360.420457 | E130: =C130*($T$4/$T$5) -> 720.8409141 | F130: ABIERTO | G130: =IF(RAND()+0*$V$1<=$T$6,"WIN","LOSS") -> LOSS | H130: =IF(F130="CIERRE",IF(RAND()+0*$V$1<=$T$6,"WIN","LOSS"),"—") -> — | I130: 5.406306856 | J130: 10.92155623 | K130: -5.406306856 | L130: 0 | M130: -5.406306856 | N130: 0.8021022852 | O130: =MAX(C$2:C130) -> 1098.800046 | P130: -0.01596166167 | Q130: -3
A131: 2026-06-10 | B131: 130 | C131: =C130+M130 -> 1075.855064 | D131: 358.6183548 | E131: 717.2367095 | F131: ABIERTO | G131: LOSS | H131: — | I131: 5.379275321 | J131: 10.92155623 | K131: -5.379275321 | L131: 0 | M131: -5.379275321 | N131: 0.7930917738 | O131: =MAX(C$2:C131) -> 1098.800046 | P131: -0.02088185336 | Q131: -4
A132: 2026-06-11 | B132: 131 | C132: 1070.475789 | D132: 356.825263 | E132: 713.650526 | F132: =IF(MOD(B132-1,$T$10)=0,"APERTURA",IF(MOD(B132,$T$10)=0,"CIERRE",IF(OR(F131="APERTURA",F131="ABIERTO"),"ABIERTO","—"))) -> ABIERTO | G132: WIN | H132: — | I132: =D132*$T$8 -> 5.352378945 | J132: =IF(F132="APERTURA",E132*$T$9,IF(OR(F132="ABIERTO",F132="CIERRE"),J131,0)) -> 10.92155623 | K132: =IF(G132="WIN",I132*$T$7,-I132) -> 13.38094736 | L132: =IF(F132="CIERRE",IF(H132="WIN",J132*$T$7,-J132),0) -> 0 | M132: =K132+L132 -> 13.38094736 | N132: =(C132/C$2-1) -> 0.7841263149 | O132: =MAX(C$2:C132) -> 1098.800046 | P132: =C132/O132-1 -> -0.02577744409 | Q132: =IF(G132=G131,IF(G132="WIN",Q131+1,Q131-1),IF(G132="WIN",1,-1)) -> 1
A133: 2026-06-12 | B133: 132 | C133: 1083.856736 | D133: 361.2855788 | E133: 722.5711575 | F133: CIERRE | G133: LOSS | H133: WIN | I133: 5.419283681 | J133: 10.92155623 | K133: -5.419283681 | L133: 27.30389059 | M133: 21.8846069 | N133: 0.8064278938 | O133: =MAX(C$2:C133) -> 1098.800046 | P133: -0.01359966214 | Q133: -1
A134: 2026-06-13 | B134: 133 | C134: 1105.741343 | D134: 368.5804477 | E134: 737.1608955 | F134: APERTURA | G134: WIN | H134: — | I134: 5.528706716 | J134: 11.05741343 | K134: 13.82176679 | L134: 0 | M134: 13.82176679 | N134: 0.8429022387 | O134: =MAX(C$2:C134) -> 1105.741343 | P134: 0 | Q134: 1
A135: 2026-06-14 | B135: 134 | C135: 1119.56311 | D135: 373.1877033 | E135: 746.3754067 | F135: ABIERTO | G135: LOSS | H135: — | I135: 5.59781555 | J135: 11.05741343 | K135: -5.59781555 | L135: 0 | M135: -5.59781555 | N135: 0.8659385166 | O135: =MAX(C$2:C135) -> 1119.56311 | P135: 0 | Q135: -1
A136: 2026-06-15 | B136: 135 | C136: 1113.965294 | D136: 371.3217648 | E136: 742.6435296 | F136: ABIERTO | G136: WIN | H136: — | I136: 5.569826472 | J136: 11.05741343 | K136: 13.92456618 | L136: 0 | M136: 13.92456618 | N136: 0.8566088241 | O136: =MAX(C$2:C136) -> 1119.56311 | P136: -0.005 | Q136: 1
A137: 2026-06-16 | B137: 136 | C137: 1127.889861 | D137: 375.9632869 | E137: 751.9265737 | F137: ABIERTO | G137: LOSS | H137: — | I137: 5.639449303 | J137: 11.05741343 | K137: -5.639449303 | L137: 0 | M137: -5.639449303 | N137: 0.8798164344 | O137: =MAX(C$2:C137) -> 1127.889861 | P137: 0 | Q137: -1
A138: 2026-06-17 | B138: 137 | C138: 1122.250411 | D138: 374.0834704 | E138: 748.1669409 | F138: ABIERTO | G138: WIN | H138: — | I138: 5.611252057 | J138: 11.05741343 | K138: 14.02813014 | L138: 0 | M138: 14.02813014 | N138: 0.8704173522 | O138: =MAX(C$2:C138) -> 1127.889861 | P138: -0.005 | Q138: 1
A139: 2026-06-18 | B139: 138 | C139: 1136.278541 | D139: 378.7595138 | E139: 757.5190276 | F139: CIERRE | G139: LOSS | H139: WIN | I139: 5.681392707 | J139: 11.05741343 | K139: -5.681392707 | L139: 27.64353358 | M139: 21.96214087 | N139: 0.8937975691 | O139: =MAX(C$2:C139) -> 1136.278541 | P139: 0 | Q139: -1
A140: 2026-06-19 | B140: 139 | C140: 1158.240682 | D140: 386.0802274 | E140: 772.1604549 | F140: APERTURA | G140: LOSS | H140: — | I140: 5.791203412 | J140: 11.58240682 | K140: -5.791203412 | L140: 0 | M140: -5.791203412 | N140: 0.9304011372 | O140: =MAX(C$2:C140) -> 1158.240682 | P140: 0 | Q140: -2
A141: 2026-06-20 | B141: 140 | C141: 1152.449479 | D141: 384.1498263 | E141: 768.2996526 | F141: ABIERTO | G141: LOSS | H141: — | I141: 5.762247395 | J141: 11.58240682 | K141: -5.762247395 | L141: 0 | M141: -5.762247395 | N141: 0.9207491315 | O141: =MAX(C$2:C141) -> 1158.240682 | P141: -0.005 | Q141: -3
A142: 2026-06-21 | B142: 141 | C142: 1146.687232 | D142: 382.2290772 | E142: 764.4581543 | F142: ABIERTO | G142: WIN | H142: — | I142: 5.733436158 | J142: 11.58240682 | K142: 14.33359039 | L142: 0 | M142: 14.33359039 | N142: 0.9111453859 | O142: =MAX(C$2:C142) -> 1158.240682 | P142: -0.009975 | Q142: 1
A143: 2026-06-22 | B143: 142 | C143: 1161.020822 | D143: 387.0069406 | E143: 774.0138813 | F143: ABIERTO | G143: LOSS | H143: — | I143: 5.80510411 | J143: 11.58240682 | K143: -5.80510411 | L143: 0 | M143: -5.80510411 | N143: 0.9350347032 | O143: =MAX(C$2:C143) -> 1161.020822 | P143: 0 | Q143: -1
A144: 2026-06-23 | B144: 143 | C144: 1155.215718 | D144: 385.0719059 | E144: 770.1438119 | F144: ABIERTO | G144: LOSS | H144: — | I144: 5.776078589 | J144: 11.58240682 | K144: -5.776078589 | L144: 0 | M144: -5.776078589 | N144: 0.9253595297 | O144: =MAX(C$2:C144) -> 1161.020822 | P144: -0.005 | Q144: -2
A145: 2026-06-24 | B145: 144 | C145: 1149.439639 | D145: 383.1465464 | E145: 766.2930928 | F145: CIERRE | G145: LOSS | H145: WIN | I145: 5.747198196 | J145: 11.58240682 | K145: -5.747198196 | L145: 28.95601706 | M145: 23.20881886 | N145: 0.915732732 | O145: =MAX(C$2:C145) -> 1161.020822 | P145: -0.009975 | Q145: -3
A146: 2026-06-25 | B146: 145 | C146: 1172.648458 | D146: 390.8828194 | E146: 781.7656387 | F146: APERTURA | G146: LOSS | H146: — | I146: 5.86324229 | J146: 11.72648458 | K146: -5.86324229 | L146: 0 | M146: -5.86324229 | N146: 0.9544140968 | O146: =MAX(C$2:C146) -> 1172.648458 | P146: 0 | Q146: -4
A147: 2026-06-26 | B147: 146 | C147: 1166.785216 | D147: 388.9284053 | E147: 777.8568105 | F147: ABIERTO | G147: LOSS | H147: — | I147: 5.833926079 | J147: 11.72648458 | K147: -5.833926079 | L147: 0 | M147: -5.833926079 | N147: 0.9446420263 | O147: =MAX(C$2:C147) -> 1172.648458 | P147: -0.005 | Q147: -5
A148: 2026-06-27 | B148: 147 | C148: 1160.95129 | D148: 386.9837632 | E148: 773.9675265 | F148: ABIERTO | G148: LOSS | H148: — | I148: 5.804756449 | J148: 11.72648458 | K148: -5.804756449 | L148: 0 | M148: -5.804756449 | N148: 0.9349188162 | O148: =MAX(C$2:C148) -> 1172.648458 | P148: -0.009975 | Q148: -6
A149: 2026-06-28 | B149: 148 | C149: 1155.146533 | D149: 385.0488444 | E149: 770.0976888 | F149: ABIERTO | G149: WIN | H149: — | I149: 5.775732666 | J149: 11.72648458 | K149: 14.43933167 | L149: 0 | M149: 14.43933167 | N149: 0.9252442221 | O149: =MAX(C$2:C149) -> 1172.648458 | P149: -0.014925125 | Q149: 1
A150: 2026-06-29 | B150: 149 | C150: 1169.585865 | D150: 389.861955 | E150: 779.72391 | F150: ABIERTO | G150: WIN | H150: — | I150: 5.847929325 | J150: 11.72648458 | K150: 14.61982331 | L150: 0 | M150: 14.61982331 | N150: 0.9493097749 | O150: =MAX(C$2:C150) -> 1172.648458 | P150: -0.002611689063 | Q150: 2
A151: 2026-06-30 | B151: 150 | C151: 1184.205688 | D151: 394.7352294 | E151: 789.4704588 | F151: CIERRE | G151: LOSS | H151: LOSS | I151: 5.921028441 | J151: 11.72648458 | K151: -5.921028441 | L151: -11.72648458 | M151: -17.64751302 | N151: 0.9736761471 | O151: =MAX(C$2:C151) -> 1184.205688 | P151: 0 | Q151: -1
A152: 2026-07-01 | B152: 151 | C152: 1166.558175 | D152: 388.8527251 | E152: 777.7054501 | F152: APERTURA | G152: WIN | H152: — | I152: 5.832790876 | J152: 11.66558175 | K152: 14.58197719 | L152: 0 | M152: 14.58197719 | N152: 0.9442636254 | O152: =MAX(C$2:C152) -> 1184.205688 | P152: -0.01490240521 | Q152: 1
A153: 2026-07-02 | B153: 152 | C153: 1181.140152 | D153: 393.7133841 | E153: 787.4267683 | F153: ABIERTO | G153: LOSS | H153: — | I153: 5.905700762 | J153: 11.66558175 | K153: -5.905700762 | L153: 0 | M153: -5.905700762 | N153: 0.9685669207 | O153: =MAX(C$2:C153) -> 1184.205688 | P153: -0.002588685278 | Q153: -1
A154: 2026-07-03 | B154: 153 | C154: 1175.234452 | D154: 391.7448172 | E154: 783.4896344 | F154: ABIERTO | G154: LOSS | H154: — | I154: 5.876172258 | J154: 11.66558175 | K154: -5.876172258 | L154: 0 | M154: -5.876172258 | N154: 0.9587240861 | O154: =MAX(C$2:C154) -> 1184.205688 | P154: -0.007575741852 | Q154: -2
A155: 2026-07-04 | B155: 154 | C155: 1169.358279 | D155: 389.7860931 | E155: 779.5721863 | F155: ABIERTO | G155: LOSS | H155: — | I155: 5.846791397 | J155: 11.66558175 | K155: -5.846791397 | L155: 0 | M155: -5.846791397 | N155: 0.9489304656 | O155: =MAX(C$2:C155) -> 1184.205688 | P155: -0.01253786314 | Q155: -3
A156: 2026-07-05 | B156: 155 | C156: 1163.511488 | D156: 387.8371627 | E156: 775.6743253 | F156: ABIERTO | G156: LOSS | H156: — | I156: 5.81755744 | J156: 11.66558175 | K156: -5.81755744 | L156: 0 | M156: -5.81755744 | N156: 0.9391858133 | O156: =MAX(C$2:C156) -> 1184.205688 | P156: -0.01747517383 | Q156: -4
A157: 2026-07-06 | B157: 156 | C157: 1157.693931 | D157: 385.8979769 | E157: 771.7959537 | F157: CIERRE | G157: LOSS | H157: LOSS | I157: 5.788469653 | J157: 11.66558175 | K157: -5.788469653 | L157: -11.66558175 | M157: -17.4540514 | N157: 0.9294898843 | O157: =MAX(C$2:C157) -> 1184.205688 | P157: -0.02238779796 | Q157: -5
A158: 2026-07-07 | B158: 157 | C158: 1140.239879 | D158: 380.0799597 | E158: 760.1599194 | F158: APERTURA | G158: LOSS | H158: — | I158: 5.701199396 | J158: 11.40239879 | K158: -5.701199396 | L158: 0 | M158: -5.701199396 | N158: 0.9003997986 | O158: =MAX(C$2:C158) -> 1184.205688 | P158: -0.03712683492 | Q158: -6
A159: 2026-07-08 | B159: 158 | C159: 1134.53868 | D159: 378.1795599 | E159: 756.3591198 | F159: ABIERTO | G159: LOSS | H159: — | I159: 5.672693399 | J159: 11.40239879 | K159: -5.672693399 | L159: 0 | M159: -5.672693399 | N159: 0.8908977996 | O159: =MAX(C$2:C159) -> 1184.205688 | P159: -0.04194120074 | Q159: -7
A160: 2026-07-09 | B160: 159 | C160: 1128.865986 | D160: 376.2886621 | E160: 752.5773242 | F160: ABIERTO | G160: LOSS | H160: — | I160: 5.644329932 | J160: 11.40239879 | K160: -5.644329932 | L160: 0 | M160: -5.644329932 | N160: 0.8814433106 | O160: =MAX(C$2:C160) -> 1184.205688 | P160: -0.04673149474 | Q160: -8
A161: 2026-07-10 | B161: 160 | C161: 1123.221656 | D161: 374.4072188 | E161: 748.8144376 | F161: ABIERTO | G161: WIN | H161: — | I161: 5.616108282 | J161: 11.40239879 | K161: 14.04027071 | L161: 0 | M161: 14.04027071 | N161: 0.872036094 | O161: =MAX(C$2:C161) -> 1184.205688 | P161: -0.05149783726 | Q161: 1
A162: 2026-07-11 | B162: 161 | C162: 1137.261927 | D162: 379.087309 | E162: 758.1746181 | F162: ABIERTO | G162: LOSS | H162: — | I162: 5.686309636 | J162: 11.40239879 | K162: -5.686309636 | L162: 0 | M162: -5.686309636 | N162: 0.8954365452 | O162: =MAX(C$2:C162) -> 1184.205688 | P162: -0.03964156023 | Q162: -1
A163: 2026-07-12 | B163: 162 | C163: 1131.575617 | D163: 377.1918725 | E163: 754.383745 | F163: CIERRE | G163: LOSS | H163: LOSS | I163: 5.657878087 | J163: 11.40239879 | K163: -5.657878087 | L163: -11.40239879 | M163: -17.06027688 | N163: 0.8859593625 | O163: =MAX(C$2:C163) -> 1184.205688 | P163: -0.04444335243 | Q163: -2
A164: 2026-07-13 | B164: 163 | C164: 1114.515341 | D164: 371.5051135 | E164: 743.0102271 | F164: APERTURA | G164: WIN | H164: — | I164: 5.572576703 | J164: 11.14515341 | K164: 13.93144176 | L164: 0 | M164: 13.93144176 | N164: 0.8575255677 | O164: =MAX(C$2:C164) -> 1184.205688 | P164: -0.05884986732 | Q164: 1
A165: 2026-07-14 | B165: 164 | C165: 1128.446782 | D165: 376.1489275 | E165: 752.2978549 | F165: ABIERTO | G165: WIN | H165: — | I165: 5.642233912 | J165: 11.14515341 | K165: 14.10558478 | L165: 0 | M165: 14.10558478 | N165: 0.8807446373 | O165: =MAX(C$2:C165) -> 1184.205688 | P165: -0.04708549066 | Q165: 2
A166: 2026-07-15 | B166: 165 | C166: 1142.552367 | D166: 380.850789 | E166: 761.7015781 | F166: ABIERTO | G166: LOSS | H166: — | I166: 5.712761836 | J166: 11.14515341 | K166: -5.712761836 | L166: 0 | M166: -5.712761836 | N166: 0.9042539452 | O166: =MAX(C$2:C166) -> 1184.205688 | P166: -0.03517405929 | Q166: -1
A167: 2026-07-16 | B167: 166 | C167: 1136.839605 | D167: 378.9465351 | E167: 757.8930702 | F167: ABIERTO | G167: WIN | H167: — | I167: 5.684198027 | J167: 11.14515341 | K167: 14.21049507 | L167: 0 | M167: 14.21049507 | N167: 0.8947326755 | O167: =MAX(C$2:C167) -> 1184.205688 | P167: -0.039998189 | Q167: 1
A168: 2026-07-17 | B168: 167 | C168: 1151.0501 | D168: 383.6833668 | E168: 767.3667336 | F168: ABIERTO | G168: LOSS | H168: — | I168: 5.755250502 | J168: 11.14515341 | K168: -5.755250502 | L168: 0 | M168: -5.755250502 | N168: 0.918416834 | O168: =MAX(C$2:C168) -> 1184.205688 | P168: -0.02799816636 | Q168: -1
A169: 2026-07-18 | B169: 168 | C169: 1145.29485 | D169: 381.76495 | E169: 763.5298999 | F169: CIERRE | G169: LOSS | H169: LOSS | I169: 5.726474249 | J169: 11.14515341 | K169: -5.726474249 | L169: -11.14515341 | M169: -16.87162766 | N169: 0.9088247498 | O169: =MAX(C$2:C169) -> 1184.205688 | P169: -0.03285817553 | Q169: -2
A170: 2026-07-19 | B170: 169 | C170: 1128.423222 | D170: 376.1410741 | E170: 752.2821481 | F170: APERTURA | G170: WIN | H170: — | I170: 5.642116111 | J170: 11.28423222 | K170: 14.10529028 | L170: 0 | M170: 14.10529028 | N170: 0.8807053704 | O170: =MAX(C$2:C170) -> 1184.205688 | P170: -0.04710538598 | Q170: 1
A171: 2026-07-20 | B171: 170 | C171: 1142.528512 | D171: 380.8428375 | E171: 761.685675 | F171: ABIERTO | G171: LOSS | H171: — | I171: 5.712642562 | J171: 11.28423222 | K171: -5.712642562 | L171: 0 | M171: -5.712642562 | N171: 0.9042141875 | O171: =MAX(C$2:C171) -> 1184.205688 | P171: -0.0351942033 | Q171: -1
A172: 2026-07-21 | B172: 171 | C172: 1136.81587 | D172: 378.9386233 | E172: 757.8772466 | F172: ABIERTO | G172: WIN | H172: — | I172: 5.68407935 | J172: 11.28423222 | K172: 14.21019837 | L172: 0 | M172: 14.21019837 | N172: 0.8946931166 | O172: =MAX(C$2:C172) -> 1184.205688 | P172: -0.04001823228 | Q172: 1
A173: 2026-07-22 | B173: 172 | C173: 1151.026068 | D173: 383.6753561 | E173: 767.3507122 | F173: ABIERTO | G173: WIN | H173: — | I173: 5.755130342 | J173: 11.28423222 | K173: 14.38782585 | L173: 0 | M173: 14.38782585 | N173: 0.9183767805 | O173: =MAX(C$2:C173) -> 1184.205688 | P173: -0.02801846019 | Q173: 2
A174: 2026-07-23 | B174: 173 | C174: 1165.413894 | D174: 388.4712981 | E174: 776.9425961 | F174: ABIERTO | G174: LOSS | H174: — | I174: 5.827069471 | J174: 11.28423222 | K174: -5.827069471 | L174: 0 | M174: -5.827069471 | N174: 0.9423564903 | O174: =MAX(C$2:C174) -> 1184.205688 | P174: -0.01586869094 | Q174: -1
A175: 2026-07-24 | B175: 174 | C175: 1159.586825 | D175: 386.5289416 | E175: 773.0578831 | F175: CIERRE | G175: LOSS | H175: WIN | I175: 5.797934123 | J175: 11.28423222 | K175: -5.797934123 | L175: 28.21058056 | M175: 22.41264643 | N175: 0.9326447078 | O175: =MAX(C$2:C175) -> 1184.205688 | P175: -0.02078934748 | Q175: -2
A176: 2026-07-25 | B176: 175 | C176: 1181.999471 | D176: 393.9998237 | E176: 787.9996474 | F176: APERTURA | G176: WIN | H176: — | I176: 5.909997356 | J176: 11.81999471 | K176: 14.77499339 | L176: 0 | M176: 14.77499339 | N176: 0.9699991185 | O176: =MAX(C$2:C176) -> 1184.205688 | P176: -0.001863035397 | Q176: 1
A177: 2026-07-26 | B177: 176 | C177: 1196.774465 | D177: 398.9248215 | E177: 797.849643 | F177: ABIERTO | G177: LOSS | H177: — | I177: 5.983872323 | J177: 11.81999471 | K177: -5.983872323 | L177: 0 | M177: -5.983872323 | N177: 0.9946241075 | O177: =MAX(C$2:C177) -> 1196.774465 | P177: 0 | Q177: -1
A178: 2026-07-27 | B178: 177 | C178: 1190.790592 | D178: 396.9301974 | E178: 793.8603948 | F178: ABIERTO | G178: LOSS | H178: — | I178: 5.953952961 | J178: 11.81999471 | K178: -5.953952961 | L178: 0 | M178: -5.953952961 | N178: 0.984650987 | O178: =MAX(C$2:C178) -> 1196.774465 | P178: -0.005 | Q178: -2
A179: 2026-07-28 | B179: 178 | C179: 1184.836639 | D179: 394.9455464 | E179: 789.8910928 | F179: ABIERTO | G179: LOSS | H179: — | I179: 5.924183196 | J179: 11.81999471 | K179: -5.924183196 | L179: 0 | M179: -5.924183196 | N179: 0.9747277321 | O179: =MAX(C$2:C179) -> 1196.774465 | P179: -0.009975 | Q179: -3
A180: 2026-07-29 | B180: 179 | C180: 1178.912456 | D180: 392.9708187 | E180: 785.9416374 | F180: ABIERTO | G180: LOSS | H180: — | I180: 5.89456228 | J180: 11.81999471 | K180: -5.89456228 | L180: 0 | M180: -5.89456228 | N180: 0.9648540934 | O180: =MAX(C$2:C180) -> 1196.774465 | P180: -0.014925125 | Q180: -4
A181: 2026-07-30 | B181: 180 | C181: 1173.017894 | D181: 391.0059646 | E181: 782.0119292 | F181: CIERRE | G181: LOSS | H181: WIN | I181: 5.865089469 | J181: 11.81999471 | K181: -5.865089469 | L181: 29.54998678 | M181: 23.68489731 | N181: 0.9550298229 | O181: =MAX(C$2:C181) -> 1196.774465 | P181: -0.01985049937 | Q181: -5
A182: 2026-07-31 | B182: 181 | C182: 1196.702791 | D182: 398.9009304 | E182: 797.8018607 | F182: APERTURA | G182: WIN | H182: — | I182: 5.983513955 | J182: 11.96702791 | K182: 14.95878489 | L182: 0 | M182: 14.95878489 | N182: 0.9945046518 | O182: =MAX(C$2:C182) -> 1196.774465 | P182: -5.988885343e-05 | Q182: 1
A183: 2026-08-01 | B183: 182 | C183: 1211.661576 | D183: 403.887192 | E183: 807.774384 | F183: ABIERTO | G183: LOSS | H183: — | I183: 6.05830788 | J183: 11.96702791 | K183: -6.05830788 | L183: 0 | M183: -6.05830788 | N183: 1.01943596 | O183: =MAX(C$2:C183) -> 1211.661576 | P183: 0 | Q183: -1
A184: 2026-08-02 | B184: 183 | C184: 1205.603268 | D184: 401.867756 | E184: 803.735512 | F184: ABIERTO | G184: WIN | H184: — | I184: 6.02801634 | J184: 11.96702791 | K184: 15.07004085 | L184: 0 | M184: 15.07004085 | N184: 1.00933878 | O184: =MAX(C$2:C184) -> 1211.661576 | P184: -0.005 | Q184: 1
A185: 2026-08-03 | B185: 184 | C185: 1220.673309 | D185: 406.891103 | E185: 813.7822059 | F185: ABIERTO | G185: WIN | H185: — | I185: 6.103366545 | J185: 11.96702791 | K185: 15.25841636 | L185: 0 | M185: 15.25841636 | N185: 1.034455515 | O185: =MAX(C$2:C185) -> 1220.673309 | P185: 0 | Q185: 2
A186: 2026-08-04 | B186: 185 | C186: 1235.931725 | D186: 411.9772418 | E186: 823.9544835 | F186: ABIERTO | G186: LOSS | H186: — | I186: 6.179658626 | J186: 11.96702791 | K186: -6.179658626 | L186: 0 | M186: -6.179658626 | N186: 1.059886209 | O186: =MAX(C$2:C186) -> 1235.931725 | P186: 0 | Q186: -1
A187: 2026-08-05 | B187: 186 | C187: 1229.752067 | D187: 409.9173556 | E187: 819.8347111 | F187: CIERRE | G187: LOSS | H187: WIN | I187: 6.148760333 | J187: 11.96702791 | K187: -6.148760333 | L187: 29.91756978 | M187: 23.76880944 | N187: 1.049586778 | O187: =MAX(C$2:C187) -> 1235.931725 | P187: -0.005 | Q187: -2
A188: 2026-08-06 | B188: 187 | C188: 1253.520876 | D188: 417.840292 | E188: 835.6805841 | F188: APERTURA | G188: LOSS | H188: — | I188: 6.267604381 | J188: 12.53520876 | K188: -6.267604381 | L188: 0 | M188: -6.267604381 | N188: 1.08920146 | O188: =MAX(C$2:C188) -> 1253.520876 | P188: 0 | Q188: -3
A189: 2026-08-07 | B189: 188 | C189: 1247.253272 | D189: 415.7510906 | E189: 831.5021811 | F189: ABIERTO | G189: LOSS | H189: — | I189: 6.236266359 | J189: 12.53520876 | K189: -6.236266359 | L189: 0 | M189: -6.236266359 | N189: 1.078755453 | O189: =MAX(C$2:C189) -> 1253.520876 | P189: -0.005 | Q189: -4
A190: 2026-08-08 | B190: 189 | C190: 1241.017005 | D190: 413.6723351 | E190: 827.3446702 | F190: ABIERTO | G190: LOSS | H190: — | I190: 6.205085027 | J190: 12.53520876 | K190: -6.205085027 | L190: 0 | M190: -6.205085027 | N190: 1.068361676 | O190: =MAX(C$2:C190) -> 1253.520876 | P190: -0.009975 | Q190: -5
A191: 2026-08-09 | B191: 190 | C191: 1234.81192 | D191: 411.6039734 | E191: 823.2079469 | F191: ABIERTO | G191: WIN | H191: — | I191: 6.174059602 | J191: 12.53520876 | K191: 15.435149 | L191: 0 | M191: 15.435149 | N191: 1.058019867 | O191: =MAX(C$2:C191) -> 1253.520876 | P191: -0.014925125 | Q191: 1
A192: 2026-08-10 | B192: 191 | C192: 1250.247069 | D192: 416.7490231 | E192: 833.4980462 | F192: ABIERTO | G192: WIN | H192: — | I192: 6.251235347 | J192: 12.53520876 | K192: 15.62808837 | L192: 0 | M192: 15.62808837 | N192: 1.083745116 | O192: =MAX(C$2:C192) -> 1253.520876 | P192: -0.002611689062 | Q192: 2
A193: 2026-08-11 | B193: 192 | C193: 1265.875158 | D193: 421.9583859 | E193: 843.9167718 | F193: CIERRE | G193: WIN | H193: WIN | I193: 6.329375789 | J193: 12.53520876 | K193: 15.82343947 | L193: 31.3380219 | M193: 47.16146137 | N193: 1.10979193 | O193: =MAX(C$2:C193) -> 1265.875158 | P193: 0 | Q193: 3
A194: 2026-08-12 | B194: 193 | C194: 1313.036619 | D194: =C194*($T$3/$T$5) -> 437.678873 | E194: =C194*($T$4/$T$5) -> 875.3577461 | F194: APERTURA | G194: =IF(RAND()+0*$V$1<=$T$6,"WIN","LOSS") -> WIN | H194: =IF(F194="CIERRE",IF(RAND()+0*$V$1<=$T$6,"WIN","LOSS"),"—") -> — | I194: 6.565183095 | J194: 13.13036619 | K194: 16.41295774 | L194: 0 | M194: 16.41295774 | N194: 1.188394365 | O194: =MAX(C$2:C194) -> 1313.036619 | P194: 0 | Q194: 4
A195: 2026-08-13 | B195: 194 | C195: =C194+M194 -> 1329.449577 | D195: 443.1498589 | E195: 886.2997179 | F195: ABIERTO | G195: LOSS | H195: — | I195: 6.647247884 | J195: 13.13036619 | K195: -6.647247884 | L195: 0 | M195: -6.647247884 | N195: 1.215749295 | O195: =MAX(C$2:C195) -> 1329.449577 | P195: 0 | Q195: -1
A196: 2026-08-14 | B196: 195 | C196: 1322.802329 | D196: 440.9341096 | E196: 881.8682193 | F196: =IF(MOD(B196-1,$T$10)=0,"APERTURA",IF(MOD(B196,$T$10)=0,"CIERRE",IF(OR(F195="APERTURA",F195="ABIERTO"),"ABIERTO","—"))) -> ABIERTO | G196: WIN | H196: — | I196: =D196*$T$8 -> 6.614011645 | J196: =IF(F196="APERTURA",E196*$T$9,IF(OR(F196="ABIERTO",F196="CIERRE"),J195,0)) -> 13.13036619 | K196: =IF(G196="WIN",I196*$T$7,-I196) -> 16.53502911 | L196: =IF(F196="CIERRE",IF(H196="WIN",J196*$T$7,-J196),0) -> 0 | M196: =K196+L196 -> 16.53502911 | N196: =(C196/C$2-1) -> 1.204670548 | O196: =MAX(C$2:C196) -> 1329.449577 | P196: =C196/O196-1 -> -0.005 | Q196: =IF(G196=G195,IF(G196="WIN",Q195+1,Q195-1),IF(G196="WIN",1,-1)) -> 1
A197: 2026-08-15 | B197: 196 | C197: 1339.337358 | D197: 446.445786 | E197: 892.891572 | F197: ABIERTO | G197: LOSS | H197: — | I197: 6.69668679 | J197: 13.13036619 | K197: -6.69668679 | L197: 0 | M197: -6.69668679 | N197: 1.23222893 | O197: =MAX(C$2:C197) -> 1339.337358 | P197: 0 | Q197: -1
A198: 2026-08-16 | B198: 197 | C198: 1332.640671 | D198: 444.2135571 | E198: 888.4271142 | F198: ABIERTO | G198: LOSS | H198: — | I198: 6.663203356 | J198: 13.13036619 | K198: -6.663203356 | L198: 0 | M198: -6.663203356 | N198: 1.221067785 | O198: =MAX(C$2:C198) -> 1339.337358 | P198: -0.005 | Q198: -2
A199: 2026-08-17 | B199: 198 | C199: 1325.977468 | D199: 441.9924893 | E199: 883.9849786 | F199: CIERRE | G199: WIN | H199: LOSS | I199: 6.62988734 | J199: 13.13036619 | K199: 16.57471835 | L199: -13.13036619 | M199: 3.444352158 | N199: 1.209962447 | O199: =MAX(C$2:C199) -> 1339.337358 | P199: -0.009975 | Q199: 1
A200: 2026-08-18 | B200: 199 | C200: 1329.42182 | D200: 443.1406067 | E200: 886.2812134 | F200: APERTURA | G200: WIN | H200: — | I200: 6.6471091 | J200: 13.2942182 | K200: 16.61777275 | L200: 0 | M200: 16.61777275 | N200: 1.215703033 | O200: =MAX(C$2:C200) -> 1339.337358 | P200: -0.007403316221 | Q200: 2
... 136 more rows

Sheet RESULTADOS_MC
A1: Run | B1: Equity Final | C1: Return % | D1: Max Drawdown % | E1: Win Rate | G1: PANEL DE RESULTADOS — MONTE CARLO (100 SIMULACIONES) | M1: Rango Retorno | N1: Frecuencia
A2: 1 | B2: 0 | C2: -1 | D2: -1 | E2: 0.0628742515 | G2: Probabilidad de perder dinero | J2: =COUNTIF(C2:C101,"<0")/COUNTA(C2:C101) -> 1 | K2: =IF(J2<=0.05,"✅ Excelente (<5%)",IF(J2<=0.15,"⚠️ Moderado (5-15%)","❌ Alto (>15%)")) -> ❌ Alto (>15%) | M2: < 0% | N2: =COUNTIFS(C2:C101,"<0") -> 100
A3: 2 | B3: 0 | C3: -1 | D3: -1 | E3: 0.07784431138 | G3: Retorno mediano | J3: =MEDIAN(C2:C101) -> -1 | K3: =IF(J3>=1,"✅ Duplicas capital",IF(J3>=0.5,"✅ >50% retorno",IF(J3>=0.1,"✅ >10% retorno","⚠️ Retorno bajo"))) -> ⚠️ Retorno bajo | M3: 0-50% | N3: =COUNTIFS(C2:C101,">=0",C2:C101,"<0.5") -> 0
A4: 3 | B4: 0 | C4: -1 | D4: -1 | E4: 0.05089820359 | G4: Percentil 10% (escenario malo) | J4: =_xlfn.PERCENTILE.INC(C2:C101,0.1) -> -1 | K4: =IF(J4>0,"✅ Incluso el peor 10% gana","❌ 10% de veces pierdes") -> ❌ 10% de veces pierdes | M4: 50-100% | N4: =COUNTIFS(C2:C101,">=0.5",C2:C101,"<1") -> 0
A5: 4 | B5: 0 | C5: -1 | D5: -1 | E5: 0.0628742515 | G5: Percentil 90% (escenario bueno) | J5: =_xlfn.PERCENTILE.INC(C2:C101,0.9) -> -1 | K5: ="⭐ El mejor 10% gana >"&FIXED(J5*100,0)&"%" -> ⭐ El mejor 10% gana >-100% | M5: 100-150% | N5: =COUNTIFS(C2:C101,">=1",C2:C101,"<1.5") -> 0
A6: 5 | B6: 0 | C6: -1 | D6: -1 | E6: 0.05089820359 | G6: Drawdown típico (mediana) | J6: =MEDIAN(D2:D101) -> -1 | K6: =IF(J6>-0.15,"✅ DD controlado (<15%)",IF(J6>-0.3,"⚠️ DD significativo","❌ DD severo (>30%)")) -> ❌ DD severo (>30%) | M6: 150-200% | N6: =COUNTIFS(C2:C101,">=1.5",C2:C101,"<2") -> 0
A7: 6 | B7: 0 | C7: -1 | D7: -1 | E7: 0.05988023952 | G7: Drawdown malo (P90) | J7: =_xlfn.PERCENTILE.INC(D2:D101,0.9) -> -1 | K7: =IF(ABS(J7)<0.2,"✅ Tolerable",IF(ABS(J7)<0.4,"⚠️ Doloroso","❌ Muy severo")) -> ❌ Muy severo | M7: 200-250% | N7: =COUNTIFS(C2:C101,">=2",C2:C101,"<2.5") -> 0
A8: 7 | B8: 0 | C8: -1 | D8: -1 | E8: 0.07784431138 | M8: 250-300% | N8: =COUNTIFS(C2:C101,">=2.5",C2:C101,"<3") -> 0
A9: 8 | B9: 0 | C9: -1 | D9: -1 | E9: 0.05389221557 | G9: ESTADÍSTICAS ADICIONALES | M9: 300-400% | N9: =COUNTIFS(C2:C101,">=3",C2:C101,"<4") -> 0
A10: 9 | B10: 0 | C10: -1 | D10: -1 | E10: 0.06886227545 | G10: Retorno Promedio | J10: =AVERAGE(C2:C101) -> -1 | M10: >400% | N10: =COUNTIFS(C2:C101,">=4") -> 0
A11: 10 | B11: 0 | C11: -1 | D11: -1 | E11: 0.06886227545 | G11: Desviación Estándar | J11: =STDEV(C2:C101) -> 0 | K11: Dispersión de resultados
A12: 11 | B12: 0 | C12: -1 | D12: -1 | E12: 0.08383233533 | G12: Retorno Mínimo | J12: =MIN(C2:C101) -> -1 | K12: Peor simulación posible
A13: 12 | B13: 0 | C13: -1 | D13: -1 | E13: 0.06586826347 | G13: Retorno Máximo | J13: =MAX(C2:C101) -> -1 | K13: Mejor simulación posible
A14: 13 | B14: 0 | C14: -1 | D14: -1 | E14: 0.05988023952 | G14: Win Rate Promedio | J14: =AVERAGE(E2:E101) -> 0.06550898204 | K14: Debería converger al input
A15: 14 | B15: 0 | C15: -1 | D15: -1 | E15: 0.06886227545 | G15: Equity Final Promedio | J15: =AVERAGE(B2:B101) -> 0
A16: 15 | B16: 0 | C16: -1 | D16: -1 | E16: 0.05988023952 | G16: Equity Final Mediana | J16: =MEDIAN(B2:B101) -> 0
A17: 16 | B17: 0 | C17: -1 | D17: -1 | E17: 0.0628742515 | G17: ⚠️ Para actualizar: ejecuta la macro Monte Carlo desde VBA (Alt+F8 → RunMonteCarlo). Los datos de arriba son de la última ejecución.
A18: 17 | B18: 0 | C18: -1 | D18: -1 | E18: 0.06886227545 | G18: INTERPRETACIÓN DE RESULTADOS
A19: 18 | B19: 0 | C19: -1 | D19: -1 | E19: 0.05089820359 | G19: 🎲 ¿Qué significa esta simulación?
A20: 19 | B20: 0 | C20: -1 | D20: -1 | E20: 0.05688622754 | G20: ="Corrimos tu plan de trading "&COUNTA(A2:A101)&" veces con diferentes secuencias aleatorias de" -> Corrimos tu plan de trading 100 veces con diferentes secuencias aleatorias de
A21: 20 | B21: 0 | C21: -1 | D21: -1 | E21: 0.07784431138 | G21: ="wins y losses. Cada corrida simula "&'Plan de Trading'!T25&" días de trading (Feb-Dic 2026)." -> wins y losses. Cada corrida simula 334 días de trading (Feb-Dic 2026).
A22: 21 | B22: 0 | C22: -1 | D22: -1 | E22: 0.0628742515
A23: 22 | B23: 0 | C23: -1 | D23: -1 | E23: 0.09281437126 | G23: 💰 Sobre tu dinero:
A24: 23 | B24: 0 | C24: -1 | D24: -1 | E24: 0.05988023952 | G24: =IF(J2=0,"✅ En 100 simulaciones, NINGUNA perdió dinero. Tu plan tiene ventaja estadística.","⚠️ En "&FIXED(J2*100,0)&" de 100 simulaciones se perdió dinero.") -> ⚠️ En 100 de 100 simulaciones se perdió dinero.
A25: 24 | B25: 0 | C25: -1 | D25: -1 | E25: 0.04790419162 | G25: ="• En el peor escenario (P10), tu retorno fue "&FIXED(J4*100,1)&"% — aun así ganaste dinero" -> • En el peor escenario (P10), tu retorno fue -100,0% — aun así ganaste dinero
A26: 25 | B26: 0 | C26: -1 | D26: -1 | E26: 0.05389221557 | G26: ="• En el escenario típico (mediana), tu retorno fue "&FIXED(J3*100,1)&"% (equity final $"&FIXED(J16,0)&")" -> • En el escenario típico (mediana), tu retorno fue -100,0% (equity final $0)
A27: 26 | B27: 0 | C27: -1 | D27: -1 | E27: 0.07784431138 | G27: ="• En el mejor 10% de los casos, ganaste más de "&FIXED(J5*100,0)&"% de retorno" -> • En el mejor 10% de los casos, ganaste más de -100% de retorno
A28: 27 | B28: 0 | C28: -1 | D28: -1 | E28: 0.06886227545
A29: 28 | B29: 0 | C29: -1 | D29: -1 | E29: 0.07185628743 | G29: 📉 Sobre el dolor del camino:
A30: 29 | B30: 0 | C30: -1 | D30: -1 | E30: 0.0628742515 | G30: ="• El drawdown típico fue "&FIXED(ABS(J6)*100,1)&"% — en algún momento tu cuenta cayó ~"&FIXED(ABS(J6)*100,0)&"% desde su máximo" -> • El drawdown típico fue 100,0% — en algún momento tu cuenta cayó ~100% desde su máximo
A31: 30 | B31: 0 | C31: -1 | D31: -1 | E31: 0.05688622754 | G31: • Esto es NORMAL incluso en sistemas ganadores. No significa que el plan falló.
A32: 31 | B32: 0 | C32: -1 | D32: -1 | E32: 0.08083832335 | G32: ="• En el peor 10% de simulaciones, el DD llegó a "&FIXED(ABS(J7)*100,1)&"%" -> • En el peor 10% de simulaciones, el DD llegó a 100,0%
A33: 32 | B33: 0 | C33: -1 | D33: -1 | E33: 0.0628742515
A34: 33 | B34: 0 | C34: -1 | D34: -1 | E34: 0.05688622754 | G34: 🎯 Conclusión:
A35: 34 | B35: 0 | C35: -1 | D35: -1 | E35: 0.06586826347 | G35: =IF(AND(J2<=0.05,J3>=0.3,J6>-0.3),"✅ SISTEMA VIABLE — Tu plan tiene ventaja matemática. La clave es ejecutarlo con disciplina",IF(AND(J2<=0.15,J3>=0.1),"⚠️ SISTEMA MARGINAL — Funciona pero con márgenes estrechos. Revisa parámetros.","❌ SISTEMA NO VIABLE — Los números no favorecen este plan. Ajusta WR, R:R o riesgo.")) -> ❌ SISTEMA NO VIABLE — Los números no favorecen este plan. Ajusta WR, R:R o riesgo.
A36: 35 | B36: 0 | C36: -1 | D36: -1 | E36: 0.05688622754 | G36: sin importar la emoción del momento. Respeta el Stop Loss y el Position Sizing.
A37: 36 | B37: 0 | C37: -1 | D37: -1 | E37: 0.05688622754
A38: 37 | B38: 0 | C38: -1 | D38: -1 | E38: 0.07185628743 | G38: 💡 Nota didáctica:
A39: 38 | B39: 0 | C39: -1 | D39: -1 | E39: 0.06586826347 | G39: Presiona F9 para regenerar las 100 simulaciones. Verás que los números cambian
A40: 39 | B40: 0 | C40: -1 | D40: -1 | E40: 0.06586826347 | G40: pero la TENDENCIA se mantiene: un sistema con ventaja matemática gana a largo plazo.
A41: 40 | B41: 0 | C41: -1 | D41: -1 | E41: 0.08383233533 | G41: La gestión del riesgo NO elimina las pérdidas — las hace SOBREVIVIBLES.
A42: 41 | B42: 0 | C42: -1 | D42: -1 | E42: 0.0748502994
A43: 42 | B43: 0 | C43: -1 | D43: -1 | E43: 0.06886227545
A44: 43 | B44: 0 | C44: -1 | D44: -1 | E44: 0.0748502994
A45: 44 | B45: 0 | C45: -1 | D45: -1 | E45: 0.07784431138
A46: 45 | B46: 0 | C46: -1 | D46: -1 | E46: 0.06586826347
A47: 46 | B47: 0 | C47: -1 | D47: -1 | E47: 0.0628742515
A48: 47 | B48: 0 | C48: -1 | D48: -1 | E48: 0.04491017964
A49: 48 | B49: 0 | C49: -1 | D49: -1 | E49: 0.0748502994
A50: 49 | B50: 0 | C50: -1 | D50: -1 | E50: 0.04191616766
A51: 50 | B51: 0 | C51: -1 | D51: -1 | E51: 0.06586826347
A52: 51 | B52: 0 | C52: -1 | D52: -1 | E52: 0.0748502994
A53: 52 | B53: 0 | C53: -1 | D53: -1 | E53: 0.06886227545
A54: 53 | B54: 0 | C54: -1 | D54: -1 | E54: 0.06886227545
A55: 54 | B55: 0 | C55: -1 | D55: -1 | E55: 0.08383233533
A56: 55 | B56: 0 | C56: -1 | D56: -1 | E56: 0.05988023952
A57: 56 | B57: 0 | C57: -1 | D57: -1 | E57: 0.07185628743
A58: 57 | B58: 0 | C58: -1 | D58: -1 | E58: 0.04790419162
A59: 58 | B59: 0 | C59: -1 | D59: -1 | E59: 0.0628742515
A60: 59 | B60: 0 | C60: -1 | D60: -1 | E60: 0.0748502994
A61: 60 | B61: 0 | C61: -1 | D61: -1 | E61: 0.0748502994
A62: 61 | B62: 0 | C62: -1 | D62: -1 | E62: 0.06586826347
A63: 62 | B63: 0 | C63: -1 | D63: -1 | E63: 0.07185628743
A64: 63 | B64: 0 | C64: -1 | D64: -1 | E64: 0.05988023952
A65: 64 | B65: 0 | C65: -1 | D65: -1 | E65: 0.06586826347
A66: 65 | B66: 0 | C66: -1 | D66: -1 | E66: 0.05988023952
A67: 66 | B67: 0 | C67: -1 | D67: -1 | E67: 0.05089820359
A68: 67 | B68: 0 | C68: -1 | D68: -1 | E68: 0.06586826347
A69: 68 | B69: 0 | C69: -1 | D69: -1 | E69: 0.04491017964
A70: 69 | B70: 0 | C70: -1 | D70: -1 | E70: 0.06886227545
A71: 70 | B71: 0 | C71: -1 | D71: -1 | E71: 0.05389221557
A72: 71 | B72: 0 | C72: -1 | D72: -1 | E72: 0.07185628743
A73: 72 | B73: 0 | C73: -1 | D73: -1 | E73: 0.06586826347
A74: 73 | B74: 0 | C74: -1 | D74: -1 | E74: 0.08083832335
A75: 74 | B75: 0 | C75: -1 | D75: -1 | E75: 0.08383233533
A76: 75 | B76: 0 | C76: -1 | D76: -1 | E76: 0.05389221557
A77: 76 | B77: 0 | C77: -1 | D77: -1 | E77: 0.06586826347
A78: 77 | B78: 0 | C78: -1 | D78: -1 | E78: 0.06886227545
A79: 78 | B79: 0 | C79: -1 | D79: -1 | E79: 0.05688622754
A80: 79 | B80: 0 | C80: -1 | D80: -1 | E80: 0.06586826347
A81: 80 | B81: 0 | C81: -1 | D81: -1 | E81: 0.05389221557
A82: 81 | B82: 0 | C82: -1 | D82: -1 | E82: 0.06586826347
A83: 82 | B83: 0 | C83: -1 | D83: -1 | E83: 0.06886227545
A84: 83 | B84: 0 | C84: -1 | D84: -1 | E84: 0.04191616766
A85: 84 | B85: 0 | C85: -1 | D85: -1 | E85: 0.06586826347
A86: 85 | B86: 0 | C86: -1 | D86: -1 | E86: 0.06886227545
A87: 86 | B87: 0 | C87: -1 | D87: -1 | E87: 0.0748502994
A88: 87 | B88: 0 | C88: -1 | D88: -1 | E88: 0.05988023952
A89: 88 | B89: 0 | C89: -1 | D89: -1 | E89: 0.05389221557
A90: 89 | B90: 0 | C90: -1 | D90: -1 | E90: 0.0628742515
A91: 90 | B91: 0 | C91: -1 | D91: -1 | E91: 0.08083832335
A92: 91 | B92: 0 | C92: -1 | D92: -1 | E92: 0.06586826347
A93: 92 | B93: 0 | C93: -1 | D93: -1 | E93: 0.06886227545
A94: 93 | B94: 0 | C94: -1 | D94: -1 | E94: 0.05089820359
A95: 94 | B95: 0 | C95: -1 | D95: -1 | E95: 0.07185628743
A96: 95 | B96: 0 | C96: -1 | D96: -1 | E96: 0.0748502994
A97: 96 | B97: 0 | C97: -1 | D97: -1 | E97: 0.07784431138
A98: 97 | B98: 0 | C98: -1 | D98: -1 | E98: 0.07185628743
A99: 98 | B99: 0 | C99: -1 | D99: -1 | E99: 0.05688622754
A100: 99 | B100: 0 | C100: -1 | D100: -1 | E100: 0.0748502994
A101: 100 | B101: 0 | C101: -1 | D101: -1 | E101: 0.0628742515

Sheet Calculadora PS
B1: CALCULADORA DE POSITION SIZING
B2: Gestión de Riesgo por Posición — Herramienta Didáctica y Operativa
B4: SECCIÓN 1 — LOS 5 PILARES DE UNA POSICIÓN | F4: SECCIÓN 3 — EL JUEGO DE PESAS
B5: Concepto | C5: Valor | D5: Explicación | F5: "Si mueves una pieza, las demás se ajustan"
B6: ① Capital Total (Futuros) | C6: =Portafolio!E10 -> 200 | D6: Tu saldo total. Es el límite de supervivencia.
B7: ② Precio de Entrada (Entry) | C7: 75456 | D7: Nivel donde ejecutas la orden. | F7: Variable | G7: 🟢 SL Ajustado | H7: 🟡 Caso Base | I7: 🔴 SL Amplio
B8: ③ Stop Loss (SL) | C8: 74281 | D8: Tu tesis queda invalidada. Salida de emergencia. | F8: Entrada | G8: =C7 -> 75456 | H8: =C7 -> 75456 | I8: =C7 -> 75456
B9: ④ Take Profit (TP) | C9: 79200 | D9: Objetivo de ganancias. Determina la recompensa. | F9: Stop Loss | G9: =C7*(1-C20*0.5) -> 74868.5 | H9: =C8 -> 74281 | I9: =C7*(1-C20*2) -> 73106
B10: ⑤ Dirección (Long / Short) | C10: LONG | D10: LONG = compra, SHORT = venta en corto. | F10: Take Profit | G10: =C9 -> 79200 | H10: =C9 -> 79200 | I10: =C9 -> 79200
F11: Distancia SL (%) | G11: =ABS(G8-G9)/G8 -> 0.007785994487 | H11: =C20 -> 0.01557198897 | I11: =ABS(I8-I9)/I8 -> 0.03114397795
B12: Parámetros de Riesgo | F12: Riesgo Monetario ($) | G12: =C24 -> 3.12 | H12: =C24 -> 3.12 | I12: =C24 -> 3.12
B13: % Riesgo por Trade | C13: 0.0156 | D13: Regla de oro: definir ANTES de abrir posición. | F13: R:R | G13: =ABS(G10-G8)/ABS(G8-G9) -> 6.372765957 | H13: =C27 -> 3.186382979 | I13: =ABS(I10-I8)/ABS(I8-I9) -> 1.593191489
B14: Capital Asignado a Estrategia | C14: 56 | D14: Capital destinado a esta estrategia.
B15: Apalancamiento Disponible | C15: 10 | D15: Máximo apalancamiento del exchange/broker. | F15: ⭐ Position Size (nocional) | G15: =G12/G11 -> 400.7195234 | H15: =C34 -> 200.3597617 | I15: =I12/I11 -> 100.1798809
F16: Apalancamiento Requerido | G16: =IF(G15<=C14,1,G15/C14) -> 7.155705775 | H16: =C30 -> 3.577852888 | I16: =IF(I15<=C14,1,I15/C14) -> 1.788926444
B17: SECCIÓN 2 — LA TRÍADA DEL RIESGO | F17: Pérdida si SL se activa | G17: =(G15/G8)*ABS(G8-G9) -> 3.12 | H17: =C38 -> 3.12 | I17: =(I15/I8)*ABS(I8-I9) -> 3.12
B18: Concepto Derivado | C18: Valor | D18: Cómo se interpreta | F18: Ganancia si TP se alcanza | G18: =(G15/G8)*ABS(G10-G8) -> 19.88302979 | H18: =C39 -> 9.941514894 | I18: =(I15/I8)*ABS(I10-I8) -> 4.970757447
B19: A. Distancia al SL (precio) | C19: =ABS(C7-C8) -> 1175 | D19: Diferencia absoluta entre Entry y SL.
B20: Distancia al SL (%) | C20: =ABS(C7-C8)/C7 -> 0.01557198897 | D20: Qué tanto se mueve el precio hasta tu SL. | F20: 💡 LECCIÓN CLAVE:
B21: Distancia al TP (precio) | C21: =ABS(C9-C7) -> 3744 | D21: Diferencia absoluta entre Entry y TP. | F21: En los 3 escenarios pierdes EXACTAMENTE lo mismo ($).
B22: Distancia al TP (%) | C22: =ABS(C9-C7)/C7 -> 0.04961832061 | D22: Qué tanto se mueve el precio hasta tu TP. | F22: Lo que cambia es el TAMAÑO de la posición y el apalancamiento.
F23: SL amplio → posición pequeña. SL ajustado → posición grande.
B24: A. Riesgo Monetario (Risk $) | C24: =C6*C13 -> 3.12 | D24: Dinero exacto que pierdes si se activa el SL. | F24: El riesgo monetario SIEMPRE se mantiene controlado.
B25: Fórmula: Capital × % Riesgo
F26: SECCIÓN 4 — VALIDACIÓN Y ALERTAS
B27: B. Ratio Riesgo / Beneficio (R:R) | C27: =ABS(C9-C7)/ABS(C7-C8) -> 3.186382979 | D27: ="1 : "&FIXED(C27,2) -> 1 : 3,19
B28: Fórmula: Distancia TP ÷ Distancia SL | F28: ⚠️ Panel de Alertas
F29: ¿Riesgo dentro del límite? | G29: =IF(C13<=0.02,"✅ OK (≤2%)","❌ EXCEDE 2% del capital") -> ✅ OK (≤2%)
B30: C. Apalancamiento Requerido | C30: =IF(C34<=C14,1,C34/C14) -> 3.577852888 | D30: Apalancamiento mínimo para el sizing calculado. | F30: ¿Apalancamiento seguro? | G30: =IF(C30<=C15,"✅ OK ("&FIXED(C30,1)&"x ≤ "&FIXED(C15,0)&"x)","❌ NECESITAS "&FIXED(C30,1)&"x pero solo tienes "&FIXED(C15,0)&"x") -> ✅ OK (3,6x ≤ 10x)
B31: Si es 1x = no necesitas apalancamiento | F31: ¿R:R favorable? | G31: =IF(C27>=2,"✅ R:R ≥1:2 (favorable)",IF(C27>=1,"⚠️ R:R entre 1:1 y 1:2 (marginal)","❌ R:R < 1:1 (desfavorable)")) -> ✅ R:R ≥1:2 (favorable)
F32: ¿Margen cabe en capital asignado? | G32: =IF(C36<=C14,"✅ Margen $"&FIXED(C36,2)&" ≤ Capital $"&FIXED(C14,2),"❌ Margen $"&FIXED(C36,2)&" EXCEDE capital $"&FIXED(C14,2)) -> ✅ Margen $20,04 ≤ Capital $56,00
B33: RESULTADO — POSITION SIZE CALCULADO
B34: ⑤ Tamaño de Posición (USD nocional) | C34: =C24/C20 -> 200.3597617 | D34: Fórmula: Riesgo$ ÷ Distancia SL% | F34: 🎯 INSTINTO vs FÓRMULA
B35: Tamaño en Unidades (contratos/tokens) | C35: =C34/C7 -> 0.002655319149 | D35: Nocional ÷ Precio de Entrada | G35: 🧠 Por Fórmula | H35: 💥 Por Instinto | I35: Diferencia
B36: Margen Requerido (con apalancamiento) | C36: =C34/C15 -> 20.03597617 | D36: Nocional ÷ Apalancamiento disponible | F36: Tamaño posición elegido ($) | G36: =C34 -> 200.3597617 | H36: 200 | I36: =H36-G36 -> -0.3597617021
F37: Pérdida si SL se activa ($) | G37: =C38 -> 3.12 | H37: =(H36/C7)*C19 -> 3.114397795 | I37: =H37-G37 -> -0.005602205259
B38: Verificación: Pérdida si SL se activa | C38: =C35*C19 -> 3.12 | D38: =IF(ABS(C38-C24)<0.01,"✅ Coincide con Riesgo$ ("&FIXED(C24,2)&")","❌ NO coincide con Riesgo$") -> ✅ Coincide con Riesgo$ (3,12) | F38: % del Capital perdido | G38: =C13 -> 0.0156 | H38: =H37/C6 -> 0.01557198897 | I38: =H38-G38 -> -2.801102629e-05
B39: Verificación: Ganancia si TP se alcanza | C39: =C35*C21 -> 9.941514894 | D39: ="✅ Ganancia potencial = "&FIXED(C39/C24,2)&"x tu riesgo" -> ✅ Ganancia potencial = 3,19x tu riesgo | F39: Apalancamiento real usado | G39: =C30 -> 3.577852888 | H39: =H36/C14 -> 3.571428571 | I39: =H39-G39 -> -0.006424316109
F41: =IF(H37>G37,"❌ Por instinto pierdes $"&FIXED(H37-G37,2)&" MÁS ("&FIXED((H38-G38)*100,2)&"% extra de tu capital)","✅ El instinto resultó más conservador que la fórmula") -> ✅ El instinto resultó más conservador que la fórmula
F42: =IF(H37>G37,"💡 Estarías arriesgando "&FIXED(H37/G37,1)&"x lo que deberías según tu regla de "&FIXED(C13*100,2)&"%","") -> 
B44: TABLA DE SENSIBILIDAD — EXPECTATIVA MATEMÁTICA
B45: E = (WR × R:R) - (1 - WR). Si E > 0 → sistema rentable a largo plazo
B47: Win Rate ↓ / R:R → | C47: 1 | D47: 1.5 | E47: 2 | F47: 2.5 | G47: 3 | H47: 3.5 | I47: 4
B48: 0.25 | C48: =($B48*C$47)-(1-$B48) -> -0.5 | D48: -0.375 | E48: -0.25 | F48: -0.125 | G48: 0 | H48: 0.125 | I48: 0.25
B49: 0.3 | C49: -0.4 | D49: -0.25 | E49: -0.1 | F49: 0.05 | G49: 0.2 | H49: 0.35 | I49: 0.5
B50: 0.35 | C50: -0.3 | D50: -0.125 | E50: 0.05 | F50: 0.225 | G50: 0.4 | H50: 0.575 | I50: 0.75
B51: 0.4 | C51: -0.2 | D51: 0 | E51: 0.2 | F51: 0.4 | G51: 0.6 | H51: 0.8 | I51: 1
B52: 0.45 | C52: -0.1 | D52: 0.125 | E52: 0.35 | F52: 0.575 | G52: 0.8 | H52: 1.025 | I52: 1.25
B53: 0.5 | C53: 0 | D53: 0.25 | E53: 0.5 | F53: 0.75 | G53: 1 | H53: 1.25 | I53: 1.5
B54: 0.55 | C54: 0.1 | D54: 0.375 | E54: 0.65 | F54: 0.925 | G54: 1.2 | H54: 1.475 | I54: 1.75
B56: 🟢 Verde = Rentable 🔴 Rojo = No rentable 🟡 Borde amarillo = Tu caso base (WR 40%, R:R 2.5)
B57: Tu expectativa: 0.40 → Por cada $1 arriesgado, esperas ganar $0.40 en promedio
B58: 💡 Puedes bajar a WR 29% y seguir rentable con R:R 2.5, o bajar R:R a 1.5 y necesitar WR 47%+
B61: ASIMETRÍA DE LA PÉRDIDA — "La Trampa del Porcentaje" | F61: FÓRMULA DE KELLY — "El Porcentaje Óptimo"
B62: Si tu capital de $1,000 cae un 50%, te quedan $500. Para volver a $1,000 necesitas ganar 100%, no 50%. | F62: Kelly% = (WR × R:R - (1-WR)) / R:R = Expectativa / R:R
B64: Pérdida % | C64: Capital Restante | D64: Ganancia Necesaria para Recuperar | E64: Factor de Dificultad | F64: Variable | G64: Valor
B65: -0.05 | C65: =1+B65 -> 0.95 | D65: =(1/(1+B65))-1 -> 0.05263157895 | E65: =D65/ABS(B65) -> 1.052631579 | F65: Win Rate (WR del Plan) | G65: ='Plan de Trading'!T6 -> 0.4
B66: -0.1 | C66: =1+B66 -> 0.9 | D66: =(1/(1+B66))-1 -> 0.1111111111 | E66: =D66/ABS(B66) -> 1.111111111 | F66: R:R (de esta posición) | G66: =C27 -> 3.186382979
B67: -0.15 | C67: 0.85 | D67: 0.1764705882 | E67: 1.176470588
B68: -0.2 | C68: 0.8 | D68: 0.25 | E68: 1.25 | F68: ⭐ Kelly% Óptimo | G68: =(G65*G66-(1-G65))/G66 -> 0.2116987179 | H68: =IF(G68>0,"✅ Sistema rentable","❌ NO apuestes — expectativa negativa") -> ✅ Sistema rentable
B69: -0.25 | C69: 0.75 | D69: 0.3333333333 | E69: 1.333333333
B70: -0.3 | C70: 0.7 | D70: 0.4285714286 | E70: 1.428571429 | F70: Tu % Riesgo Actual | G70: =C13 -> 0.0156
B71: -0.4 | C71: 0.6 | D71: 0.6666666667 | E71: 1.666666667 | F71: Half Kelly (recomendado) | G71: =G68/2 -> 0.105849359
B72: -0.5 | C72: 0.5 | D72: 1 | E72: 2 | F72: Quarter Kelly (conservador) | G72: =G68/4 -> 0.05292467949
B73: -0.6 | C73: 0.4 | D73: 1.5 | E73: 2.5
B74: -0.75 | C74: 0.25 | D74: 3 | E74: 4 | F74: ¿Dónde estás tú? | G74: =IF(G70>G68,"🚨 POR ENCIMA de Kelly — sobreexpuesto",IF(G70>G71,"⚠️ Entre Kelly y Half Kelly",IF(G70>G72,"✅ Entre Half y Quarter Kelly (zona óptima)","🛡️ Por debajo de Quarter Kelly (muy conservador)"))) -> 🛡️ Por debajo de Quarter Kelly (muy conservador)
B75: -0.9 | C75: 0.1 | D75: 9 | E75: 10
F76: 💡 LECCIÓN: Kelly dice el MÁXIMO óptimo, no el recomendado.
B77: 💡 LECCIÓN: Una pérdida del 50% necesita una ganancia del 100% para recuperarse. | F77: En la práctica se usa Half Kelly (50%) porque el WR real fluctuúa.
B78: Por eso el Position Sizing es la PRIMERA línea de defensa: limitar pérdidas al 1-2% mantiene la recuperación fácil. | F78: Apostar más que Kelly GARANTIZA peor rendimiento a largo plazo.
B79: Con tu regla de 1.56%, necesitarías ~44 pérdidas SEGUIDAS para perder 50%. La probabilidad es prácticamente 0.
B82: STOP LOSS POR VOLATILIDAD (ATR) — "Paradas Inteligentes" | F82: BREAKEVEN Y GESTIÓN DE PARCIALES
B83: El ATR mide cuánto se mueve el precio en promedio. Un SL basado en ATR respeta la volatilidad real. | F83: Cómo "eliminar el riesgo" de un trade ganador en marcha.
B85: ATR del activo (14 períodos) | C85: 1850 | D85: Busca este valor en tu gráfico (ATR 14). | F85: Escenario de Gestión Parcial:
B86: Multiplicador ATR | C86: 1.5 | D86: 1x=ajustado, 1.5x=estándar, 2x=amplio. | F86: % a cerrar en +1R (parcial) | G86: 0.5
F87: % restante (corre con SL en BE) | G87: =1-G86 -> 0.5
B88: SL por ATR (precio) | C88: =IF(C10="LONG",C7-C85*C86,C7+C85*C86) -> 72681 | D88: Entry ± (ATR × Multiplicador)
B89: Distancia ATR-SL (%) | C89: =ABS(C7-C88)/C7 -> 0.03677639949 | F89: Nivel +1R (precio) | G89: =IF(C10="LONG",C7+C19,C7-C19) -> 76631 | H89: Entry + 1× distancia SL
F90: Nivel +2R (precio) | G90: =IF(C10="LONG",C7+C19*2,C7-C19*2) -> 77806
B91: Comparación: | C91: Tu SL Manual | D91: SL por ATR | F91: Nivel +3R (precio) | G91: =IF(C10="LONG",C7+C19*3,C7-C19*3) -> 78981
B92: Precio SL | C92: =C8 -> 74281 | D92: =C88 -> 72681
B93: Distancia % | C93: =C20 -> 0.01557198897 | D93: =C89 -> 0.03677639949 | F93: Resultado | G93: Precio toca +1R | H93: Luego vuelve a Entry (BE) | I93: Llega a TP original
B94: Position Size | C94: =C34 -> 200.3597617 | D94: =C24/C89 -> 84.83701622 | F94: Ganancia del parcial | G94: =C24*G86 -> 1.56 | H94: =G94 -> 1.56 | I94: =G94 -> 1.56
B95: Veredicto | C95: =IF(C93<C89,"⚠️ Más ajustado que ATR","✅ Respeta volatilidad") -> ⚠️ Más ajustado que ATR | D95: ="🎯 Basado en volatilidad real" -> 🎯 Basado en volatilidad real | F95: Resultado del restante | G95: $0 (aún abierto) | H95: =0 -> 0 | I95: =C35*G87*ABS(C9-C7) -> 4.970757447
F96: ⭐ Total Ganancia | G96: =G94 -> 1.56 | H96: =H94+H95 -> 1.56 | I96: =I94+I95 -> 6.530757447
B97: 💡 Si tu SL manual está MUY dentro del ATR, el ruido del mercado te va a sacar constantemente ("stop hunting"). | F97: vs Pérdida original | G97: ="+"&FIXED(G96/C24,2)&"R" -> +0,50R | H97: ="+"&FIXED(H96/C24,2)&"R" -> +0,50R | I97: ="+"&FIXED(I96/C24,2)&"R" -> +2,09R
F99: 💡 LECCIÓN: Al cerrar 50% en +1R y mover el SL a breakeven:
B100: CHECKLIST PRE-OPERATIVO — GO / NO-GO | F100: YA ganaste 0.5R y el restante corre "gratis" — riesgo eliminado.
B101: Antes de abrir CUALQUIER posición, TODOS los checks deben ser ✅. | F101: El peor escenario ya no es pérdida, sino ganancia de 0.5R. Psicológicamente liberador.
B103: # | C103: Requisito | D103: Estado | E103: Regla
B104: 1 | C104: ¿Riesgo ≤ 2% del capital? | D104: =IF(C13<=0.02,"✅ GO","❌ NO-GO") -> ✅ GO | E104: ="Actual: "&FIXED(C13*100,2)&"%" -> Actual: 1,56%
B105: 2 | C105: ¿R:R ≥ 1:2? | D105: =IF(C27>=2,"✅ GO","❌ NO-GO") -> ✅ GO | E105: ="Actual: 1:"&FIXED(C27,2) -> Actual: 1:3,19
B106: 3 | C106: ¿SL definido ANTES de entrar? | D106: =IF(AND(C8<>0,C8<>C7),"✅ GO","❌ NO-GO") -> ✅ GO | E106: SL debe estar puesto, no "mental".
B107: 4 | C107: ¿Apalancamiento ≤ disponible? | D107: =IF(C30<=C15,"✅ GO","❌ NO-GO") -> ✅ GO | E107: ="Necesitas "&FIXED(C30,1)&"x, tienes "&FIXED(C15,0)&"x" -> Necesitas 3,6x, tienes 10x
B108: 5 | C108: ¿Margen cabe en capital asignado? | D108: =IF(C36<=C14,"✅ GO","❌ NO-GO") -> ✅ GO | E108: ="Margen $"&FIXED(C36,0)&" vs Capital $"&FIXED(C14,0) -> Margen $20 vs Capital $56
B109: 6 | C109: ¿SL respeta volatilidad (ATR)? | D109: =IF(C20>=C89,"✅ GO","⚠️ REVISAR") -> ⚠️ REVISAR | E109: ="SL "&FIXED(C20*100,2)&"% vs ATR "&FIXED(C89*100,2)&"%" -> SL 1,56% vs ATR 3,68%
B110: 7 | C110: ¿Expectativa matemática positiva? | D110: =IF(G68>0,"✅ GO","❌ NO-GO") -> ✅ GO | E110: ="Kelly="&FIXED(G68*100,2)&"%" -> Kelly=21,17%
C112: VEREDICTO FINAL: | D112: =IF(COUNTIF(D104:D110,"❌ NO-GO")>0,"❌ NO-GO ("&COUNTIF(D104:D110,"❌ NO-GO")&" fallas)",IF(COUNTIF(D104:D110,"⚠️ REVISAR")>0,"⚠️ GO con precaución","✅ GO — EJECUTAR")) -> ⚠️ GO con precaución

Sheet HOLD
A1: Capital inicial | C1: =Portafolio!C7 -> 800 | E1: Retorno Total | G1: Estrategia
A2: Ganancias / Pérdidas | C2: =C3-C1 -> 0 | E2: =IF(C1=0,0,C2/C1) -> 0 | F2: =C2 -> 0 | G2: No rotativa
A3: Valor Actual Portafolio | C3: =J12+C4 -> 800 | G3: Temporalidad
A4: Capital disponible | C4: =C1-C5 -> 800 | G4: 1 mes+
A5: Capital invertido | C5: =E12 -> 0
A6: % capital invertido | C6: =IF(C1=0,0,C5/C1) -> 0
A8: HOLD (no rotativa)
A9: MERCADO | B9: TIPO | C9: ACTIVO | D9: FECHA COMPRA | E9: CAPITAL ASIGNADO | F9: PRECIO ENTRADA | G9: CANTIDAD | H9: PRECIO ACTUAL | I9: P&L (%) | J9: VALOR ACTUAL | K9: P&L ($) | L9: TESIS
A10: CRIPTO | B10: TOKEN | C10: BTC | G10: =IFERROR(E10/F10,"") ->  | I10: =IFERROR((H10-F10)/F10,"") ->  | J10: =IFERROR(G10*H10,0) -> 0 | K10: =IFERROR(J10-E10,"") -> 0 | L10: Store of value
A11: CRIPTO | B11: TOKEN | C11: ETH | G11: =IFERROR(E11/F11,"") ->  | I11: =IFERROR((H11-F11)/F11,"") ->  | J11: =IFERROR(G11*H11,0) -> 0 | K11: =IFERROR(J11-E11,"") -> 0 | L11: Infraestructura
A12: TOTAL | E12: =SUM(E10:E11) -> 0 | I12: =IFERROR(K12/E12,"") ->  | J12: =SUM(J10:J11) -> 0 | K12: =SUM(K10:K11) -> 0

Sheet Largo Plazo
A1: Capital inicial | C1: =Portafolio!C8 -> 600 | E1: Meta Ganancia | G1: Maxi pérdida | I1: R:R
A2: Ganancias Mes | C2: 0 | E2: =C5*2.5 -> 0.0375 | F2: =E2*C3 -> 22.5 | G2: =C5 -> 0.015 | H2: =G2*C3 -> 9
A3: Capital disponible | C3: =C1+C2 -> 600
A4: Capital invertido | C4: =C1-C3 -> 0
A5: % Riesgo por trade | C5: 0.015
A6: Entrada Pequeña | C6: =20% -> 0.2 | D6: =C6*C$3 -> 120 | E6: =D6*E$2 -> 4.5 | G6: =D6*G$2 -> 1.8
A7: Entrada Media | C7: =40% -> 0.4 | D7: =C7*C$3 -> 240 | E7: =D7*E$2 -> 9 | G7: =D7*G$2 -> 3.6
A8: Entrada Fuerte | C8: =60% -> 0.6 | D8: =C8*C$3 -> 360 | E8: =D8*E$2 -> 13.5 | G8: =D8*G$2 -> 5.4
A10: LARGO PLAZO (ROTACIÓN LENTA)
A11: ACTIVO | B11: FECHA | C11: CAPITAL | D11: ENTRADA | E11: STOP LOSS | F11: TAKE PROFIT | G11: R/R | H11: PRECIO SALIDA | I11: RETORNO % | J11: P&L ($) | K11: DÍAS | L11: ESTADO | M11: TESIS
A12: SOL | G12: =IFERROR((F12-D12)/(D12-E12),"") ->  | I12: =IFERROR((H12-D12)/D12,"") ->  | J12: =IFERROR(C12*I12,"") ->  | K12: =IF(B12="","",TODAY()-B12) ->  | L12: Abierto

Sheet Spot X
A1: Capital inicial | C1: =Portafolio!C9 -> 400 | E1: Meta Ganancia | G1: Maxi pérdida | I1: R:R
A2: Ganancias Mes | C2: 0 | E2: =C5*2.5 -> 0.0375 | F2: =E2*C3 -> 15 | G2: =C5 -> 0.015 | H2: =G2*C3 -> 6
A3: Capital disponible | C3: =C1+C2 -> 400
A4: Capital invertido | C4: =C1-C3 -> 0
A5: % Riesgo por trade | C5: 0.015
A6: Entrada Pequeña | C6: =20% -> 0.2 | D6: =C6*C$3 -> 80 | E6: =D6*E$2 -> 3 | G6: =D6*G$2 -> 1.2
A7: Entrada Media | C7: =40% -> 0.4 | D7: =C7*C$3 -> 160 | E7: =D7*E$2 -> 6 | G7: =D7*G$2 -> 2.4
A8: Entrada Fuerte | C8: =60% -> 0.6 | D8: =C8*C$3 -> 240 | E8: =D8*E$2 -> 9 | G8: =D8*G$2 -> 3.6
A10: SPOT X (TRADING SIN APALANCAMIENTO)
A11: ACTIVO | B11: FECHA | C11: CAPITAL | D11: ENTRADA | E11: STOP LOSS | F11: TAKE PROFIT | G11: R/R | H11: SALIDA | I11: RESULTADO % | J11: P&L ($) | K11: DÍAS | L11: CAP. ARRIESGADO | M11: ESTADO
A12: ETH | G12: =IFERROR((F12-D12)/(D12-E12),"") ->  | I12: =IFERROR((H12-D12)/D12,"") ->  | J12: =IFERROR(C12*I12,"") ->  | K12: =IF(B12="","",TODAY()-B12) ->  | L12: =IFERROR(C12*ABS((D12-E12)/D12),"") ->  | M12: Abierto

Sheet Futuros
A1: Capital inicial | C1: =Portafolio!C10 -> 200 | E1: Meta Ganancia Diaria | G1: Maxi perdida Diaria | J1: R:R
A2: Ganancias Mes | C2: 0 | E2: =C5*2.5 -> 0.039 | F2: =E2*C3 -> 7.8 | G2: =C5 -> 0.0156 | H2: =G2*C3 -> 3.12 | J2: 1 : 2.5
A3: Capital disponible | C3: =C1+C2 -> 200 | J3: Win rate
A4: Capital invertido | C4: =C1-C3 -> 0 | J4: 0.4
A5: % Riesgo diario | C5: 0.0156
A6: Entrada Pequeña | C6: =20% -> 0.2 | D6: =C6*C$3 -> 40 | E6: =D6*E$2 -> 1.56 | G6: =D6*G$2 -> 0.624
A7: Entrada Media | C7: =40% -> 0.4 | D7: =C7*C$3 -> 80 | E7: =D7*E$2 -> 3.12 | G7: =D7*G$2 -> 1.248
A8: Entrada Fuerte | C8: =60% -> 0.6 | D8: =C8*C$3 -> 120 | E8: 4.68 | G8: 1.872
A10: FUTUROS APALANCADO
A11: ACTIVO | B11: TIMEFRAME | C11: RIESGO % | D11: CAPITAL | E11: ENTRADA | F11: STOP LOSS | G11: TAKE PROFIT | H11: R/R
A12: BTC | B12: 1h | C12: 0.0155 | D12: =C1*C7 -> 80 | E12: 75456 | F12: 74281 | G12: 79200 | H12: =(G12-E12)/(E12-F12) -> 3.186382979 | I12: =D12*10 -> 800 | J12: =I12*C12 -> 12.4 | K12: =I12*C12*2.5 -> 31
A14: Activo | B14: Dirección Long / Short | C14: Capital usado (%) 20%, 40%, 60% | D14: Capital usado (USD) | E14: Precio entrada | F14: Stop Loss | G14: Take Profit | H14: Distancia al SL (%) | I14: Capital Arriesgado (USD) | J14: Tamaño posición (USD nocional) | K14: Tamaño posición (contrato/USD) | L14: Apalancamiento requerido | M14: R/R
A15: BTC | B15: Long | C15: 0.4 | D15: =C15*C3 -> 80 | E15: 75456 | F15: 74281 | G15: 79200 | H15: =IF(B15="LONG", (E15-F15)/E15, (F15-E15)/E15) -> 0.01557198897 | I15: =D15*H15 -> 1.245759118 | J15: =H2/H15 -> 200.3597617 | K15: =J15/D15 -> 2.504497021 | L15: =J15/D15 -> 2.504497021

Sheet PLANTILLA (hidden)
A1: Capital inicial | C1: 0 | E1: Meta Ganancia | G1: Maxi pérdida | I1: R:R
A2: Ganancias Mes | C2: 0 | E2: =C5*2.5 -> 0.0375 | F2: =E2*C3 -> 0 | G2: =C5 -> 0.015 | H2: =G2*C3 -> 0 | I2: 0.0007233796296
A3: Capital disponible | C3: =C1+C2 -> 0 | I3: Win rate
A4: Capital invertido | C4: =C1-C3 -> 0 | I4: 0.4
A5: % Riesgo por trade | C5: 0.015
A6: Entrada Pequeña | C6: =20% -> 0.2 | D6: =C6*C$3 -> 0 | E6: =D6*E$2 -> 0 | G6: =D6*G$2 -> 0
A7: Entrada Media | C7: =40% -> 0.4 | D7: =C7*C$3 -> 0 | E7: =D7*E$2 -> 0 | G7: =D7*G$2 -> 0
A8: Entrada Fuerte | C8: =60% -> 0.6 | D8: =C8*C$3 -> 0 | E8: =D8*E$2 -> 0 | G8: =D8*G$2 -> 0
A10: NUEVA ESTRATEGIA (NOMBRE)
A11: ACTIVO | B11: FECHA | C11: CAPITAL | D11: ENTRADA | E11: STOP LOSS | F11: TAKE PROFIT | G11: R/R | H11: SALIDA | I11: RESULTADO % | J11: P&L ($) | K11: DÍAS | L11: CAP. ARRIESGADO | M11: ESTADO
G12: =IFERROR((F12-D12)/(D12-E12),"") ->  | I12: =IFERROR((H12-D12)/D12,"") ->  | J12: =IFERROR(C12*I12,"") ->  | K12: =IF(B12="","",TODAY()-B12) ->  | L12: =IFERROR(C12*ABS((D12-E12)/D12),"") ->  | M12: Abierto
